Workbook

Sheet Daten_erzeugen
ALR1: Toleranz-Mitte X: | ALS1: 0 | ALU1: 0 | ALV1: =COS(RADIANS(ALU1))*$ALT$3+$ALS$1 -> 0.15 | ALW1: =SIN(RADIANS(ALU1))*$ALT$3+$ALS$2 -> 0 | ALZ1: 0 | AMB1: 0 | AMC1: 0.115 | AMD1: 1.0008 | AME1: 1.00160064 | AMG1: 0.115 | AMH1: 0 | AMI1: 0.115 | AMJ1: 0 | AML1: 0.115 | AMM1: 0.115 | AMN1: 0 | AMP1: 0.1112903226 | AMQ1: 0.1112903226 | AMR1: 0 | AMT1: 0.1078125 | AMU1: 0.1078125 | AMV1: 0 | AMX1: 0.1045454545 | AMY1: 0.1045454545 | AMZ1: 0 | ANB1: 0.1014705882 | ANC1: 0.1014705882 | AND1: 0 | ANF1: 0.09857142857 | ANG1: 0.09857142857 | ANH1: 0 | ANJ1: 0.09583333333 | ANK1: 0.09583333333 | ANL1: 0 | ANN1: 0.09324324324 | ANO1: 0.09324324324 | ANP1: 0 | ANR1: 0.09078947368 | ANS1: 0.09078947368 | ANT1: 0 | ANV1: 0.08846153846 | ANW1: 0.08846153846 | ANX1: 0 | ANZ1: 0.08625 | AOA1: 0.08625 | AOB1: 0 | AOD1: 0.115 | AOE1: 0
AM2: Soll-Durchmesser | AV2: ObereToleranz | BE2: UntereToleranz | BN2: Maximum-Material-Maß | BW2: Positionstoleranz,gültig für alle Messabläufe im Messbericht | ALR2: Toleranz-Mitte Y: | ALS2: 0 | ALU2: 10 | ALV2: =COS(RADIANS(ALU2))*$ALT$3+$ALS$1 -> 0.147721163 | ALW2: =SIN(RADIANS(ALU2))*$ALT$3+$ALS$2 -> 0.02604722665 | ALZ2: 0 | AMB2: 10 | AMC2: 0.1151840736 | AMD2: 1.0008 | AME2: 1.00160064 | AMG2: 0.1134341687 | AMH2: 0.02000150448 | AMI2: 0.1151840736 | AMJ2: 0.1745329252 | AML2: 0.1151840736 | AMM2: 0.1134341687 | AMN2: 0.02000150448 | AMP2: 0.1114684583 | AMQ2: 0.109775002 | AMR2: 0.01935629466 | AMT2: 0.107985069 | AMU2: 0.1063445332 | AMV2: 0.01875141045 | AMX2: 0.1047127942 | AMY2: 0.1031219715 | AMZ2: 0.01818318589 | ANB2: 0.1016330061 | ANC2: 0.1000889724 | AND2: 0.0176483863 | ANF2: 0.09872920594 | ANG2: 0.09722928746 | ANH2: 0.01714414669 | ANJ2: 0.095986728 | ANK2: 0.09452847392 | ANL2: 0.0166679204 | ANN2: 0.09339249211 | ANO2: 0.0919736503 | ANP2: 0.01621743606 | ANR2: 0.09093479495 | ANS2: 0.08955329108 | ANT2: 0.01579066143 | ANV2: 0.08860313354 | ANW2: 0.08725705285 | ANX2: 0.01538577267 | ANZ2: 0.0863880552 | AOA2: 0.08507562653 | AOB2: 0.01500112836 | AOD2: 0.1134341687 | AOE2: 0.02000150448
AM3: =ALZ8 -> 10 | AV3: =ALZ9 -> 0.05 | BE3: =ALZ10 -> -0.05 | BN3: =AM3+BE3 -> 9.95 | BW3: 0.3 | ALR3: Toleranz-Durchmesser: | ALS3: 0.3 | ALT3: =ALS3/2 -> 0.15 | ALU3: 20 | ALV3: 0.1409538931 | ALW3: 0.0513030215 | ALZ3: 0.23 | AMB3: 20 | AMC3: 0.1151840736 | AMD3: 1.0088 | AME3: 1.01767744 | AMG3: 0.108237624 | AMH3: 0.03939527336 | AMI3: 0.1151840736 | AMJ3: 0.3490658504 | AML3: 0.1151840736 | AMM3: 0.108237624 | AMN3: 0.03939527336 | AMP3: 0.1114684583 | AMQ3: 0.1047460877 | AMR3: 0.03812445809 | AMT3: 0.107985069 | AMU3: 0.1014727725 | AMV3: 0.03693306878 | AMX3: 0.1047127942 | AMY3: 0.09839783999 | AMZ3: 0.03581388487 | ANB3: 0.1016330061 | ANC3: 0.09550378588 | AND3: 0.03476053532 | ANF3: 0.09872920594 | ANG3: 0.09277510628 | ANH3: 0.03376737717 | ANJ3: 0.095986728 | ANK3: 0.09019801999 | ANL3: 0.03282939447 | ANN3: 0.09339249211 | ANO3: 0.08776023567 | ANP3: 0.03194211354 | ANR3: 0.09093479495 | ANS3: 0.08545075578 | ANT3: 0.0311015316 | ANV3: 0.08860313354 | ANW3: 0.08325971076 | ANX3: 0.03030405643 | ANZ3: 0.0863880552 | AOA3: 0.081178218 | AOB3: 0.02954645502 | AOD3: 0.108237624 | AOE3: 0.03939527336
ALU4: 30 | ALV4: 0.1299038106 | ALW4: 0.075 | AMB4: 30 | AMC4: 0.1170329056 | AMD4: 1.0168 | AME4: 1.03388224 | AMG4: 0.1013534693 | AMH4: 0.0585164528 | AMI4: 0.1170329056 | AMJ4: 0.5235987756 | AML4: 0.1170329056 | AMM4: 0.1013534693 | AMN4: 0.0585164528 | AMP4: 0.1132576506 | AMQ4: 0.09808400258 | AMR4: 0.05662882529 | AMT4: 0.109718349 | AMU4: 0.0950188775 | AMV4: 0.0548591745 | AMX4: 0.1063935505 | AMY4: 0.09213951757 | AMZ4: 0.05319677527 | ANB4: 0.1032643285 | ANC4: 0.08942953176 | AND4: 0.05163216424 | ANF4: 0.1003139191 | ANG4: 0.08687440228 | ANH4: 0.05015695954 | ANJ4: 0.09752742133 | ANK4: 0.08446122444 | ANL4: 0.04876371067 | ANN4: 0.09489154508 | ANO4: 0.08217848864 | ANP4: 0.04744577254 | ANR4: 0.09239439916 | ANS4: 0.08001589684 | ANT4: 0.04619719958 | ANV4: 0.090025312 | ANW4: 0.07796420718 | ANX4: 0.045012656 | ANZ4: 0.0877746792 | AOA4: 0.076015102 | AOB4: 0.0438873396 | AOD4: 0.1013534693 | AOE4: 0.0585164528
CE5: Unterschiedlicher Wert für die Punkte-Verschiebung | ALU5: 40 | ALV5: 0.1149066665 | ALW5: 0.09641814145 | AMB5: 40 | AMC5: 0.1188964576 | AMD5: 1.0248 | AME5: 1.05021504 | AMG5: 0.09107997065 | AMH5: 0.07642516978 | AMI5: 0.1188964576 | AMJ5: 0.6981317008 | AML5: 0.1188964576 | AMM5: 0.09107997065 | AMN5: 0.07642516978 | AMP5: 0.115061088 | AMQ5: 0.08814190708 | AMR5: 0.07395984172 | AMT5: 0.111465429 | AMU5: 0.08538747249 | AMV5: 0.07164859667 | AMX5: 0.1080876887 | AMY5: 0.08279997332 | AMZ5: 0.06947742707 | ANB5: 0.1049086391 | ANC5: 0.08036467999 | AND5: 0.06743397334 | ANF5: 0.1019112494 | ANG5: 0.07806854627 | ANH5: 0.06550728838 | ANJ5: 0.09908038133 | ANK5: 0.07589997554 | ANL5: 0.06368764148 | ANN5: 0.09640253319 | ANO5: 0.07384862485 | ANP5: 0.06196635388 | ANR5: 0.09386562442 | ANS5: 0.07190523999 | ANT5: 0.06033566035 | ANV5: 0.09145881354 | ANW5: 0.07006151589 | ANX5: 0.05878859214 | ANZ5: 0.0891723432 | AOA5: 0.06830997799 | AOB5: 0.05731887734 | AOD5: 0.09107997065 | AOE5: 0.07642516978
ALU6: 50 | ALV6: 0.09641814145 | ALW6: 0.1149066665 | ALZ6: 0.0008 | AMB6: 50 | AMC6: 0.1207747296 | AMD6: 1.0328 | AME6: 1.06667584 | AMG6: 0.07763249975 | AMH6: 0.09251881048 | AMI6: 0.1207747296 | AMJ6: 0.872664626 | AML6: 0.1207747296 | AMM6: 0.07763249975 | AMN6: 0.09251881048 | AMP6: 0.1168787706 | AMQ6: 0.07512822556 | AMR6: 0.08953433272 | AMT6: 0.113226309 | AMU6: 0.07278046852 | AMV6: 0.08673638482 | AMX6: 0.1097952087 | AMY6: 0.07057499977 | AMZ6: 0.08410800953 | ANB6: 0.1065659379 | ANC6: 0.06849926449 | AND6: 0.08163424454 | ANF6: 0.1035211968 | ANG6: 0.06654214264 | ANH6: 0.07930183755 | ANJ6: 0.100645608 | ANK6: 0.06469374979 | ANL6: 0.07709900873 | ANN6: 0.09792545643 | ANO6: 0.06294527007 | ANP6: 0.07501525174 | ANR6: 0.09534847074 | ANS6: 0.06128881559 | ANT6: 0.07304116617 | ANV6: 0.09290363815 | ANW6: 0.0597173075 | ANX6: 0.07116831575 | ANZ6: 0.0905810472 | AOA6: 0.05822437481 | AOB6: 0.06938910786 | AOD6: 0.07763249975 | AOE6: 0.09251881048
ALU7: 60 | ALV7: 0.075 | ALW7: 0.1299038106 | AMB7: 60 | AMC7: 0.1226677216 | AMD7: 1.0408 | AME7: 1.08326464 | AMG7: 0.0613338608 | AMH7: 0.1062333631 | AMI7: 0.1226677216 | AMJ7: 1.047197551 | AML7: 0.1226677216 | AMM7: 0.0613338608 | AMN7: 0.1062333631 | AMP7: 0.1187106983 | AMQ7: 0.05935534916 | AMR7: 0.1028064804 | AMT7: 0.115000989 | AMU7: 0.0575004945 | AMV7: 0.09959377793 | AMX7: 0.1115161105 | AMY7: 0.05575805527 | AMZ7: 0.09657578466 | ANB7: 0.1082362249 | ANC7: 0.05411811247 | AND7: 0.09373532041 | ANF7: 0.1051437614 | ANG7: 0.05257188069 | ANH7: 0.0910571684 | ANJ7: 0.1022231013 | ANK7: 0.05111155067 | ANL7: 0.08852780261 | ANN7: 0.09946031481 | ANO7: 0.04973015741 | ANP7: 0.08613515929 | ANR7: 0.09684293811 | ANS7: 0.04842146905 | ANT7: 0.08386844458 | ANV7: 0.09435978585 | ANW7: 0.04717989292 | ANX7: 0.08171797164 | ANZ7: 0.0920007912 | AOA7: 0.0460003956 | AOB7: 0.07967502235 | AOD7: 0.0613338608 | AOE7: 0.1062333631
AM8: Ist-Durchm. aller Bohrungen | AV8: Toleranz-Bonus | BE8: Erweiterte Positionstoleranz | BN8: Faktor | BW8: Umrechnen | ALU8: 70 | ALV8: 0.0513030215 | ALW8: 0.1409538931 | ALZ8: 10 | AMB8: 70 | AMC8: 0.1245754336 | AMD8: 1.0488 | AME8: 1.09998144 | AMG8: 0.04260730765 | AMH8: 0.1170626157 | AMI8: 0.1245754336 | AMJ8: 1.221730476 | AML8: 0.1245754336 | AMM8: 0.04260730765 | AMN8: 0.1170626157 | AMP8: 0.1205568712 | AMQ8: 0.04123287838 | AMR8: 0.1132864023 | AMT8: 0.116789469 | AMU8: 0.03994435093 | AMV8: 0.1097462022 | AMX8: 0.1132503942 | AMY8: 0.03873391605 | AMZ8: 0.1064205597 | ANB8: 0.1099195002 | ANC8: 0.03759468322 | AND8: 0.1032905433 | ANF8: 0.1067789431 | ANG8: 0.03652054942 | ANH8: 0.1003393849 | ANJ8: 0.1038128613 | ANK8: 0.03550608971 | ANL8: 0.09755217974 | ANN8: 0.1010071083 | ANO8: 0.03454646567 | ANP8: 0.09491563434 | ANR8: 0.09834902653 | ANS8: 0.03363734815 | ANT8: 0.09241785449 | ANV8: 0.09582725662 | ANW8: 0.03277485204 | ANX8: 0.09004816591 | ANZ8: 0.0934315752 | AOA8: 0.03195548074 | AOB8: 0.08779696176 | AOD8: 0.04260730765 | AOE8: 0.1170626157
AK9: g | AM9: =ALZ15 -> 9.95 | AV9: =BN3-AM9 -> 0 | BE9: =BW3+AV9 -> 0.3 | BN9: =BW3/BE9 -> 1 | ALU9: 80 | ALV9: 0.02604722665 | ALW9: 0.147721163 | ALZ9: 0.05 | AMB9: 80 | AMC9: 0.1264978656 | AMD9: 1.0568 | AME9: 1.11682624 | AMG9: 0.02196612384 | AMH9: 0.1245760788 | AMI9: 0.1264978656 | AMJ9: 1.396263402 | AML9: 0.1264978656 | AMM9: 0.02196612384 | AMN9: 0.1245760788 | AMP9: 0.1224172893 | AMQ9: 0.0212575392 | AMR9: 0.1205574956 | AMT9: 0.118591749 | AMU9: 0.0205932411 | AMV9: 0.1167900739 | AMX9: 0.1149980596 | AMY9: 0.01996920349 | AMZ9: 0.1132509807 | ANB9: 0.1116157638 | ANC9: 0.01938187398 | AND9: 0.1099200695 | ANF9: 0.1084267419 | ANG9: 0.01882810615 | ANH9: 0.1067794961 | ANJ9: 0.105414888 | ANK9: 0.0183051032 | ANL9: 0.103813399 | ANN9: 0.102565837 | ANO9: 0.01781037068 | ANP9: 0.1010076314 | ANR9: 0.099866736 | ANS9: 0.01734167672 | ANT9: 0.09834953588 | ANV9: 0.09730605046 | ANW9: 0.01689701834 | ANX9: 0.09582775291 | ANZ9: 0.0948733992 | AOA9: 0.01647459288 | AOB9: 0.09343205909 | AOD9: 0.02196612384 | AOE9: 0.1245760788
ALU10: 90 | ALV10: 9.188613412e-18 | ALW10: 0.15 | ALZ10: -0.05 | AMB10: 90 | AMC10: 0.1284350176 | AMD10: 1.0648 | AME10: 1.13379904 | AMG10: 7.867598168e-18 | AMH10: 0.1284350176 | AMI10: 0.1284350176 | AMJ10: 1.570796327 | AML10: 0.1284350176 | AMM10: 7.867598168e-18 | AMN10: 0.1284350176 | AMP10: 0.1242919525 | AMQ10: 7.613804679e-18 | AMR10: 0.1242919525 | AMT10: 0.120407829 | AMU10: 7.375873283e-18 | AMV10: 0.120407829 | AMX10: 0.1167591069 | AMY10: 7.152361971e-18 | AMZ10: 0.1167591069 | ANB10: 0.1133250155 | ANC10: 6.941998384e-18 | AND10: 0.1133250155 | ANF10: 0.1100871579 | ANG10: 6.743655573e-18 | ANH10: 0.1100871579 | ANJ10: 0.1070291813 | ANK10: 6.556331807e-18 | ANL10: 0.1070291813 | ANN10: 0.1041365008 | ANO10: 6.37913365e-18 | ANP10: 0.1041365008 | ANR10: 0.1013960665 | ANS10: 6.211261712e-18 | ANT10: 0.1013960665 | ANV10: 0.09879616738 | ANW10: 6.051998591e-18 | ANX10: 0.09879616738 | ANZ10: 0.0963262632 | AOA10: 5.900698626e-18 | AOB10: 0.0963262632 | AOD10: 7.867598168e-18 | AOE10: 0.1284350176
ALU11: 100 | ALV11: -0.02604722665 | ALW11: 0.147721163 | ALZ11: =ABS(ALZ9)+ABS(ALZ10) -> 0.1 | AMB11: 100 | AMC11: 0.1303868896 | AMD11: 1.0728 | AME11: 1.15089984 | AMG11: -0.02264144577 | AMH11: 0.1284060198 | AMI11: 0.1303868896 | AMJ11: 1.745329252 | AML11: 0.1303868896 | AMM11: -0.02264144577 | AMN11: 0.1284060198 | AMP11: 0.1261808609 | AMQ11: -0.02191107655 | AMR11: 0.1242638901 | AMT11: 0.122237709 | AMU11: -0.02122635541 | AMV11: 0.1203806435 | AMX11: 0.118533536 | AMY11: -0.02058313252 | AMZ11: 0.1167327452 | ANB11: 0.1150472555 | ANC11: -0.01997774627 | AND11: 0.1132994292 | ANF11: 0.1117601911 | ANG11: -0.01940695352 | ANH11: 0.1100623027 | ANJ11: 0.1086557413 | ANK11: -0.01886787148 | ANL11: 0.1070050165 | ANN11: 0.1057190997 | ANO11: -0.018357929 | ANP11: 0.104112989 | ANR11: 0.1029370181 | ANS11: -0.01787482561 | ANT11: 0.1013731735 | ANV11: 0.1002976074 | ANW11: -0.01741649675 | ANX11: 0.09877386136 | ANZ11: 0.0977901672 | AOA11: -0.01698108433 | AOB11: 0.09630451483 | AOD11: -0.02264144577 | AOE11: 0.1284060198
AM12: =ALZ16 -> 9.96 | AV12: =AM12-BN3 -> 0.01 | BE12: =BW3+AV12 -> 0.31 | BN12: =BW3/BE12 -> 0.9677419355 | ALU12: 110 | ALV12: -0.0513030215 | ALW12: 0.1409538931 | ALZ12: 10 | AMB12: 110 | AMC12: 0.1323534816 | AMD12: 1.0808 | AME12: 1.16812864 | AMG12: -0.04526755675 | AMH12: 0.12437159 | AMI12: 0.1323534816 | AMJ12: 1.919862177 | AML12: 0.1323534816 | AMM12: -0.04526755675 | AMN12: 0.12437159 | AMP12: 0.1280840145 | AMQ12: -0.04380731298 | AMR12: 0.1203596032 | AMT12: 0.124081389 | AMU12: -0.04243833445 | AMV12: 0.1165983656 | AMX12: 0.1203213469 | AMY12: -0.04115232431 | AMZ12: 0.1130650818 | ANB12: 0.1167824838 | ANC12: -0.03994196184 | AND12: 0.1097396382 | ANF12: 0.1134458414 | ANG12: -0.03880076293 | ANH12: 0.10660422 | ANJ12: 0.110294568 | ANK12: -0.03772296396 | ANL12: 0.1036429917 | ANN12: 0.1073136337 | ANO12: -0.03670342439 | ANP12: 0.1008418297 | ANR12: 0.1044895907 | ANS12: -0.0357375448 | ANT12: 0.09818809736 | ANV12: 0.1018103705 | ANW12: -0.0348211975 | ANX12: 0.09567045384 | ANZ12: 0.0992651112 | AOA12: -0.03395066756 | AOB12: 0.0932786925 | AOD12: -0.04526755675 | AOE12: 0.12437159
ALU13: 120 | ALV13: -0.075 | ALW13: 0.1299038106 | ALZ13: =ALZ11/(ALZ12) -> 0.01 | AMB13: 120 | AMC13: 0.1343347936 | AMD13: 1.0888 | AME13: 1.18548544 | AMG13: -0.0671673968 | AMH13: 0.1163373439 | AMI13: 0.1343347936 | AMJ13: 2.094395102 | AML13: 0.1343347936 | AMM13: -0.0671673968 | AMN13: 0.1163373439 | AMP13: 0.1300014132 | AMQ13: -0.06500070658 | AMR13: 0.1125845263 | AMT13: 0.125938869 | AMU13: -0.0629694345 | AMV13: 0.1090662599 | AMX13: 0.1221225396 | AMY13: -0.06106126982 | AMZ13: 0.1057612217 | ANB13: 0.1185307002 | ANC13: -0.05926535012 | AND13: 0.1026505975 | ANF13: 0.1151441088 | ANG13: -0.0575720544 | ANH13: 0.09971772332 | ANJ13: 0.1119456613 | ANK13: -0.05597283067 | ANL13: 0.09694778656 | ANN13: 0.1089201029 | ANO13: -0.05446005146 | ANP13: 0.09432757611 | ANR13: 0.1060537844 | ANS13: -0.05302689221 | ANT13: 0.09184527148 | ANV13: 0.1033344566 | ANW13: -0.05166722831 | ANX13: 0.08949026452 | ANZ13: 0.1007510952 | AOA13: -0.0503755476 | AOB13: 0.0872530079 | AOD13: -0.0671673968 | AOE13: 0.1163373439
ALU14: 130 | ALV14: -0.09641814145 | ALW14: 0.1149066665 | AMB14: 130 | AMC14: 0.1363308256 | AMD14: 1.0968 | AME14: 1.20297024 | AMG14: -0.08763176551 | AMH14: 0.1044354714 | AMI14: 0.1363308256 | AMJ14: 2.268928028 | AML14: 0.1363308256 | AMM14: -0.08763176551 | AMN14: 0.1044354714 | AMP14: 0.131933057 | AMQ14: -0.08480493437 | AMR14: 0.1010665852 | AMT14: 0.127810149 | AMU14: -0.08215478017 | AMV14: 0.09790825442 | AMX14: 0.1239371142 | AMY14: -0.07966524138 | AMZ14: 0.09494133762 | ANB14: 0.1202919049 | ANC14: -0.07732214604 | AND14: 0.09214894533 | ANF14: 0.1168549934 | ANG14: -0.07511294187 | ANH14: 0.08951611832 | ANJ14: 0.1136090213 | ANK14: -0.07302647126 | ANL14: 0.08702955948 | ANN14: 0.1105385072 | ANO14: -0.07105278285 | ANP14: 0.08467740922 | ANR14: 0.1076295992 | ANS14: -0.06918297277 | ANT14: 0.08244905635 | ANV14: 0.1048698658 | ANW14: -0.0674090504 | ANX14: 0.08033497798 | ANZ14: 0.1022481192 | AOA14: -0.06572382414 | AOB14: 0.07832660353 | AOD14: -0.08763176551 | AOE14: 0.1044354714
AM15: =ALZ17 -> 9.97 | AV15: =AM15-BN3 -> 0.02 | BE15: =BW3+AV15 -> 0.32 | BN15: =BW3/BE15 -> 0.9375 | ALU15: 140 | ALV15: -0.1149066665 | ALW15: 0.09641814145 | ALY15: 1 | ALZ15: =ALZ8+ALZ10 -> 9.95 | AMA15: =BN9 -> 1 | AMB15: 140 | AMC15: 0.1383415776 | AMD15: 1.1048 | AME15: 1.22058304 | AMG15: -0.1059757968 | AMH15: 0.08892425199 | AMI15: 0.1383415776 | AMJ15: 2.443460953 | AML15: 0.1383415776 | AMM15: -0.1059757968 | AMN15: 0.08892425199 | AMP15: 0.1338789461 | AMQ15: -0.1025572227 | AMR15: 0.08605572773 | AMT15: 0.129695229 | AMU15: -0.09935230947 | AMV15: 0.08336648624 | AMX15: 0.1257650705 | AMY15: -0.09634163343 | AMZ15: 0.08084022908 | ANB15: 0.1220660979 | ANC15: -0.09350805598 | AND15: 0.07846257528 | ANF15: 0.1185784951 | ANG15: -0.09083639723 | ANH15: 0.07622078742 | ANJ15: 0.115284648 | ANK15: -0.08831316398 | ANL15: 0.07410354332 | ANN15: 0.1121688467 | ANO15: -0.08592632171 | ANP15: 0.07210074485 | ANR15: 0.1092170349 | ANS15: -0.08366510272 | ANT15: 0.07020335683 | ANV15: 0.1064165982 | ANW15: -0.08151984367 | ANX15: 0.06840327076 | ANZ15: 0.1037561832 | AOA15: -0.07948184758 | AOB15: 0.06669318899 | AOD15: -0.1059757968 | AOE15: 0.08892425199
ALU16: 150 | ALV16: -0.1299038106 | ALW16: 0.075 | ALY16: 2 | ALZ16: =$ALZ$15+$ALZ$13*ALY15 -> 9.96 | AMA16: =BN12 -> 0.9677419355 | AMB16: 150 | AMC16: 0.1403670496 | AMD16: 1.1128 | AME16: 1.23832384 | AMG16: -0.1215614308 | AMH16: 0.0701835248 | AMI16: 0.1403670496 | AMJ16: 2.617993878 | AML16: 0.1403670496 | AMM16: -0.1215614308 | AMN16: 0.0701835248 | AMP16: 0.1358390803 | AMQ16: -0.1176400943 | AMR16: 0.06791954013 | AMT16: 0.131594109 | AMU16: -0.1139638414 | AMV16: 0.0657970545 | AMX16: 0.1276064087 | AMY16: -0.1105103916 | AMZ16: 0.06380320436 | ANB16: 0.1238532791 | ANC16: -0.107260086 | AND16: 0.06192663953 | ANF16: 0.1203146139 | ANG16: -0.1041955121 | ANH16: 0.06015730697 | ANJ16: 0.1169725413 | ANK16: -0.1013011923 | ANL16: 0.05848627067 | ANN16: 0.1138111213 | ANO16: -0.09856332228 | ANP16: 0.05690556065 | ANR16: 0.1108160918 | ANS16: -0.09596955064 | ANT16: 0.05540804589 | ANV16: 0.1079746535 | ANW16: -0.09350879293 | ANX16: 0.05398732677 | ANZ16: 0.1052752872 | AOA16: -0.09117107311 | AOB16: 0.0526376436 | AOD16: -0.1215614308 | AOE16: 0.0701835248
ALU17: 160 | ALV17: -0.1409538931 | ALW17: 0.0513030215 | ALY17: 3 | ALZ17: =$ALZ$15+$ALZ$13*ALY16 -> 9.97 | AMA17: =BN15 -> 0.9375 | AMB17: 160 | AMC17: 0.1424072416 | AMD17: 1.1208 | AME17: 1.25619264 | AMG17: -0.1338190341 | AMH17: 0.04870614518 | AMI17: 0.1424072416 | AMJ17: 2.792526803 | AML17: 0.1424072416 | AMM17: -0.1338190341 | AMN17: 0.04870614518 | AMP17: 0.1378134596 | AMQ17: -0.129502291 | AMR17: 0.04713497921 | AMT17: 0.133506789 | AMU17: -0.1254553444 | AMV17: 0.04566201111 | AMX17: 0.1294611287 | AMY17: -0.1216536673 | AMZ17: 0.0442783138 | ANB17: 0.1256534485 | ANC17: -0.1180756183 | AND17: 0.04297601046 | ANF17: 0.1220633499 | ANG17: -0.1147020292 | ANH17: 0.04174812444 | ANJ17: 0.1186727013 | ANK17: -0.1115158617 | ANL17: 0.04058845432 | ANN17: 0.115465331 | ANO17: -0.1085019195 | ANP17: 0.03949146907 | ANR17: 0.1124267697 | ANS17: -0.1056466059 | ANT17: 0.03845221988 | ANV17: 0.109544032 | ANW17: -0.1029377185 | ANX17: 0.03746626553 | ANZ17: 0.1068054312 | AOA17: -0.1003642756 | AOB17: 0.03652960889 | AOD17: -0.1338190341 | AOE17: 0.04870614518
AM18: =ALZ18 -> 9.98 | AV18: =AM18-BN3 -> 0.03 | BE18: =BW3+AV18 -> 0.33 | BN18: =BW3/BE18 -> 0.9090909091 | ALU18: 170 | ALV18: -0.147721163 | ALW18: 0.02604722665 | ALY18: 4 | ALZ18: 9.98 | AMA18: =BN18 -> 0.9090909091 | AMB18: 170 | AMC18: 0.1444621536 | AMD18: 1.1288 | AME18: 1.27418944 | AMG18: -0.1422674489 | AMH18: 0.02508558971 | AMI18: 0.1444621536 | AMJ18: 2.967059728 | AML18: 0.1444621536 | AMM18: -0.1422674489 | AMN18: 0.02508558971 | AMP18: 0.1398020841 | AMQ18: -0.1376781763 | AMR18: 0.02427637714 | AMT18: 0.135433269 | AMU18: -0.1333757333 | AMV18: 0.02351774036 | AMX18: 0.1313292305 | AMY18: -0.1293340444 | AMZ18: 0.02280508156 | ANB18: 0.1274666061 | ANC18: -0.125530102 | AND18: 0.02213434387 | ANF18: 0.1238247031 | ANG18: -0.1219435276 | ANH18: 0.02150193404 | ANJ18: 0.120385128 | ANK18: -0.1185562074 | ANL18: 0.0209046581 | ANN18: 0.1171314759 | ANO18: -0.1153519856 | ANP18: 0.02033966734 | ANR18: 0.1140490686 | ANS18: -0.112316407 | ANT18: 0.01980441293 | ANV18: 0.1111247335 | ANW18: -0.1094364991 | ANX18: 0.01929660747 | ANZ18: 0.1083466152 | AOA18: -0.1067005867 | AOB18: 0.01881419229 | AOD18: -0.1422674489 | AOE18: 0.02508558971
ALU19: 180 | ALV19: -0.15 | ALW19: 1.837722682e-17 | ALY19: 5 | ALZ19: 9.99 | AMA19: =BN21 -> 0.8823529412 | AMB19: 180 | AMC19: 0.1465317856 | AMD19: 1.1368 | AME19: 1.29231424 | AMG19: -0.1465317856 | AMH19: 1.795231907e-17 | AMI19: 0.1465317856 | AMJ19: 3.141592654 | AML19: 0.1465317856 | AMM19: -0.1465317856 | AMN19: 1.795231907e-17 | AMP19: 0.1418049538 | AMQ19: -0.1418049538 | AMR19: 1.737321201e-17 | AMT19: 0.137373549 | AMU19: -0.137373549 | AMV19: 1.683029913e-17 | AMX19: 0.1332107142 | AMY19: -0.1332107142 | AMZ19: 1.632029007e-17 | ANB19: 0.129292752 | ANC19: -0.129292752 | AND19: 1.584028153e-17 | ANF19: 0.1255986734 | ANG19: -0.1255986734 | ANH19: 1.538770206e-17 | ANJ19: 0.1221098213 | ANK19: -0.1221098213 | ANL19: 1.496026589e-17 | ANN19: 0.1188095559 | ANO19: -0.1188095559 | ANP19: 1.455593438e-17 | ANR19: 0.1156829886 | ANS19: -0.1156829886 | ANT19: 1.417288348e-17 | ANV19: 0.1127167582 | ANW19: -0.1127167582 | ANX19: 1.380947621e-17 | ANZ19: 0.1098988392 | AOA19: -0.1098988392 | AOB19: 1.34642393e-17 | AOD19: -0.1465317856 | AOE19: 1.795231907e-17
ALU20: 190 | ALV20: -0.147721163 | ALW20: -0.02604722665 | ALY20: 6 | ALZ20: 10 | AMA20: =BN24 -> 0.8571428571 | AMB20: 190 | AMC20: 0.1486161376 | AMD20: 1.1448 | AME20: 1.31056704 | AMG20: -0.1463583245 | AMH20: -0.02580692147 | AMI20: 0.1486161376 | AMJ20: -2.967059728 | AML20: 0.1486161376 | AMM20: -0.1463583245 | AMN20: -0.02580692147 | AMP20: 0.1438220686 | AMQ20: -0.1416370883 | AMR20: -0.02497444013 | AMT20: 0.139327629 | AMU20: -0.1372109292 | AMV20: -0.02419398887 | AMX20: 0.1351055796 | AMY20: -0.1330530223 | AMZ20: -0.0234608377 | ANB20: 0.1311318861 | ANC20: -0.1291396981 | AND20: -0.02277081306 | ANF20: 0.1273852608 | ANG20: -0.1254499925 | ANH20: -0.0221202184 | ANJ20: 0.1238467813 | ANK20: -0.1219652704 | ANL20: -0.02150576789 | ANN20: 0.120499571 | ANO20: -0.1186689118 | ANP20: -0.02092453092 | ANR20: 0.1173285297 | ANS20: -0.1155460457 | ANT20: -0.02037388537 | ANV20: 0.1143201058 | ANW20: -0.1125833266 | ANX20: -0.01985147805 | ANZ20: 0.1114621032 | AOA20: -0.1097687434 | AOB20: -0.0193551911 | AOD20: -0.1463583245 | AOE20: -0.02580692147
AM21: =ALZ19 -> 9.99 | AV21: =AM21-BN3 -> 0.04 | BE21: =BW3+AV21 -> 0.34 | BN21: =BW3/BE21 -> 0.8823529412 | ALU21: 200 | ALV21: -0.1409538931 | ALW21: -0.0513030215 | ALY21: 7 | ALZ21: 10.01 | AMA21: =BN27 -> 0.8333333333 | AMB21: 200 | AMC21: 0.1507152096 | AMD21: 1.1528 | AME21: 1.32894784 | AMG21: -0.1416259703 | AMH21: -0.05154763759 | AMI21: 0.1507152096 | AMJ21: -2.792526803 | AML21: 0.1507152096 | AMM21: -0.1416259703 | AMN21: -0.05154763759 | AMP21: 0.1458534286 | AMQ21: -0.1370573906 | AMR21: -0.04988481057 | AMT21: 0.141295509 | AMU21: -0.1327743472 | AMV21: -0.04832591024 | AMX21: 0.1370138269 | AMY21: -0.1287508821 | AMZ21: -0.04686148872 | ANB21: 0.1329840085 | ANC21: -0.1249640914 | AND21: -0.04548320964 | ANF21: 0.1291844654 | ANG21: -0.1213936888 | ANH21: -0.04418368936 | ANJ21: 0.125596008 | ANK21: -0.1180216419 | ANL21: -0.04295636466 | ANN21: 0.1222015213 | ANO21: -0.1148318678 | ANP21: -0.04179538183 | ANR21: 0.1189856918 | ANS21: -0.1118099766 | ANT21: -0.04069550336 | ANV21: 0.1159347766 | ANW21: -0.1089430541 | ANX21: -0.03965202891 | ANZ21: 0.1130364072 | AOA21: -0.1062194777 | AOB21: -0.03866072819 | AOD21: -0.1416259703 | AOE21: -0.05154763759
ALU22: 210 | ALV22: -0.1299038106 | ALW22: -0.075 | ALY22: 8 | ALZ22: 10.02 | AMA22: =BN30 -> 0.8108108108 | AMB22: 210 | AMC22: 0.1528290016 | AMD22: 1.1608 | AME22: 1.34745664 | AMG22: -0.1323537978 | AMH22: -0.0764145008 | AMI22: 0.1528290016 | AMJ22: -2.617993878 | AML22: 0.1528290016 | AMM22: -0.1323537978 | AMN22: -0.0764145008 | AMP22: 0.1478990338 | AMQ22: -0.1280843205 | AMR22: -0.0739495169 | AMT22: 0.143277189 | AMU22: -0.1240816855 | AMV22: -0.0716385945 | AMX22: 0.138935456 | AMY22: -0.1203216344 | AMZ22: -0.069467728 | ANB22: 0.1348491191 | ANC22: -0.1167827628 | AND22: -0.06742455953 | ANF22: 0.1309962871 | ANG22: -0.1134461124 | ANH22: -0.06549814354 | ANJ22: 0.1273575013 | ANK22: -0.1102948315 | ANL22: -0.06367875067 | ANN22: 0.1239154067 | ANO22: -0.1073138901 | ANP22: -0.06195770335 | ANR22: 0.1206544749 | ANS22: -0.1044898404 | ANT22: -0.06032723747 | ANV22: 0.1175607705 | ANW22: -0.1018106137 | ANX22: -0.05878038523 | ANZ22: 0.1146217512 | AOA22: -0.09926534837 | AOB22: -0.0573108756 | AOD22: -0.1323537978 | AOE22: -0.0764145008
ALU23: 220 | ALV23: -0.1149066665 | ALW23: -0.09641814145 | ALY23: 9 | ALZ23: 10.03 | AMA23: =BN33 -> 0.7894736842 | AMB23: 220 | AMC23: 0.1549575136 | AMD23: 1.1688 | AME23: 1.36609344 | AMG23: -0.1187043422 | AMH23: -0.09960476977 | AMI23: 0.1549575136 | AMJ23: -2.443460953 | AML23: 0.1549575136 | AMM23: -0.1187043422 | AMN23: -0.09960476977 | AMP23: 0.1499588841 | AMQ23: -0.1148751699 | AMR23: -0.09639171268 | AMT23: 0.145272669 | AMU23: -0.1112853208 | AMV23: -0.09337947166 | AMX23: 0.1408704669 | AMY23: -0.1079130384 | AMZ23: -0.0905497907 | ANB23: 0.1367272179 | ANC23: -0.1047391255 | AND23: -0.08788656156 | ANF23: 0.1328207259 | ANG23: -0.101746579 | ANH23: -0.08537551695 | ANJ23: 0.1291312613 | ANK23: -0.09892028518 | ANL23: -0.08300397481 | ANN23: 0.1256412272 | ANO23: -0.09624676396 | ANP23: -0.08076062414 | ANR23: 0.1223348792 | ANS23: -0.09371395438 | ANT23: -0.07863534456 | ANV23: 0.1191980874 | ANW23: -0.09131103247 | ANX23: -0.07661905367 | ANZ23: 0.1162181352 | AOA23: -0.08902825666 | AOB23: -0.07470357733 | AOD23: -0.1187043422 | AOE23: -0.09960476977
AM24: =ALZ20 -> 10 | AV24: =AM24-BN3 -> 0.05 | BE24: =BW3+AV24 -> 0.35 | BN24: =BW3/BE24 -> 0.8571428571 | ALU24: 230 | ALV24: -0.09641814145 | ALW24: -0.1149066665 | ALY24: 10 | ALZ24: 10.04 | AMA24: =BN36 -> 0.7692307692 | AMB24: 230 | AMC24: 0.1571007456 | AMD24: 1.1768 | AME24: 1.38485824 | AMG24: -0.1009824127 | AMH24: -0.1203461532 | AMI24: 0.1571007456 | AMJ24: -2.268928028 | AML24: 0.1571007456 | AMM24: -0.1009824127 | AMN24: -0.1203461532 | AMP24: 0.1520329796 | AMQ24: -0.09772491556 | AMR24: -0.1164640192 | AMT24: 0.147281949 | AMU24: -0.09467101195 | AMV24: -0.1128245186 | AMX24: 0.1428188596 | AMY24: -0.0918021934 | AMZ24: -0.1094055938 | ANB24: 0.1386183049 | ANC24: -0.08910212889 | AND24: -0.1061877822 | ANF24: 0.1346577819 | ANG24: -0.08655635378 | ANH24: -0.1031538456 | ANJ24: 0.130917288 | ANK24: -0.08415201062 | ANL24: -0.100288461 | ANN24: 0.1273789829 | ANO24: -0.08187763195 | ANP24: -0.09757796204 | ANR24: 0.1240269044 | ANS24: -0.07972295743 | ANT24: -0.09501012093 | ANV24: 0.1208467274 | ANW24: -0.07767877903 | ANX24: -0.09257396398 | ANZ24: 0.1178255592 | AOA24: -0.07573680956 | AOB24: -0.09025961488 | AOD24: -0.1009824127 | AOE24: -0.1203461532
ALU25: 240 | ALV25: -0.075 | ALW25: -0.1299038106 | ALY25: 11 | ALZ25: 10.05 | AMA25: =BN39 -> 0.75 | AMB25: 240 | AMC25: 0.1592586976 | AMD25: 1.1848 | AME25: 1.40375104 | AMG25: -0.0796293488 | AMH25: -0.1379220779 | AMI25: 0.1592586976 | AMJ25: -2.094395102 | AML25: 0.1592586976 | AMM25: -0.0796293488 | AMN25: -0.1379220779 | AMP25: 0.1541213203 | AMQ25: -0.07706066013 | AMR25: -0.1334729786 | AMT25: 0.149305029 | AMU25: -0.0746525145 | AMV25: -0.129301948 | AMX25: 0.1447806342 | AMY25: -0.07239031709 | AMZ25: -0.1253837072 | ANB25: 0.1405223802 | ANC25: -0.07026119012 | AND25: -0.1216959511 | ANF25: 0.1365074551 | ANG25: -0.06825372754 | ANH25: -0.1182189239 | ANJ25: 0.1327155813 | ANK25: -0.06635779067 | ANL25: -0.1149350649 | ANN25: 0.1291286737 | ANO25: -0.06456433686 | ANP25: -0.1118287118 | ANR25: 0.1257305507 | ANS25: -0.06286527537 | ANT25: -0.108885851 | ANV25: 0.1225066905 | ANW25: -0.06125334523 | ANX25: -0.1060939061 | ANZ25: 0.1194440232 | AOA25: -0.0597220116 | AOB25: -0.1034415584 | AOD25: -0.0796293488 | AOE25: -0.1379220779
ALU26: 250 | ALV26: -0.0513030215 | ALW26: -0.1409538931 | AMB26: 250 | AMC26: 0.1614313696 | AMD26: 1.1928 | AME26: 1.42277184 | AMG26: -0.05521278017 | AMH26: -0.1516958668 | AMI26: 0.1614313696 | AMJ26: -1.919862177 | AML26: 0.1614313696 | AMM26: -0.05521278017 | AMN26: -0.1516958668 | AMP26: 0.1562239061 | AMQ26: -0.05343172274 | AMR26: -0.1468024517 | AMT26: 0.151341909 | AMU26: -0.05176198141 | AMV26: -0.1422148751 | AMX26: 0.1467557905 | AMY26: -0.05019343652 | AMZ26: -0.1379053334 | ANB26: 0.1424394438 | ANC26: -0.04871715897 | AND26: -0.1338492942 | ANF26: 0.1383697454 | ANG26: -0.04732524014 | ANH26: -0.1300250287 | ANJ26: 0.1345261413 | ANK26: -0.04601065014 | ANL26: -0.1264132223 | ANN26: 0.1308902997 | ANO26: -0.04476711906 | ANP26: -0.1229966487 | ANR26: 0.1274458181 | ANS26: -0.04358903697 | ANT26: -0.1197598948 | ANV26: 0.1241779766 | ANW26: -0.04247136936 | ANX26: -0.1166891283 | ANZ26: 0.1210735272 | AOA26: -0.04140958513 | AOB26: -0.1137719001 | AOD26: -0.05521278017 | AOE26: -0.1516958668
AM27: =ALZ21 -> 10.01 | AV27: =AM27-BN3 -> 0.06 | BE27: =BW3+AV27 -> 0.36 | BN27: =BW3/BE27 -> 0.8333333333 | ALU27: 260 | ALV27: -0.02604722665 | ALW27: -0.147721163 | AMB27: 260 | AMC27: 0.1636187616 | AMD27: 1.2008 | AME27: 1.44192064 | AMG27: -0.02841209978 | AMH27: -0.161133025 | AMI27: 0.1636187616 | AMJ27: -1.745329252 | AML27: 0.1636187616 | AMM27: -0.02841209978 | AMN27: -0.161133025 | AMP27: 0.158340737 | AMQ27: -0.02749558044 | AMR27: -0.1559351854 | AMT27: 0.153392589 | AMU27: -0.02663634355 | AMV27: -0.1510622109 | AMX27: 0.1487443287 | AMY27: -0.02582918162 | AMZ27: -0.1464845681 | ANB27: 0.1443694955 | ANC27: -0.02506949981 | AND27: -0.1421761985 | ANF27: 0.1402446528 | ANG27: -0.02435322839 | ANH27: -0.1381140214 | ANJ27: 0.136348968 | ANK27: -0.02367674982 | ANL27: -0.1342775208 | ANN27: 0.1326638608 | ANO27: -0.02303683766 | ANP27: -0.1306483986 | ANR27: 0.1291727065 | ANS27: -0.02243060509 | ANT27: -0.1272102829 | ANV27: 0.1258605858 | ANW27: -0.02185546137 | ANX27: -0.1239484807 | ANZ27: 0.1227140712 | AOA27: -0.02130907484 | AOB27: -0.1208497687 | AOD27: -0.02841209978 | AOE27: -0.161133025
ALU28: 270 | ALV28: -2.756584024e-17 | ALW28: -0.15 | AMB28: 270 | AMC28: 0.1658208736 | AMD28: 1.2088 | AME28: 1.46119744 | AMG28: -3.047327806e-17 | AMH28: -0.1658208736 | AMI28: 0.1658208736 | AMJ28: -1.570796327 | AML28: 0.1658208736 | AMM28: -2.666187101e-17 | AMN28: -0.1658208736 | AMP28: 0.1604718132 | AMQ28: -2.580181066e-17 | AMR28: -0.1604718132 | AMT28: 0.155457069 | AMU28: -2.499550407e-17 | AMV28: -0.155457069 | AMX28: 0.1507462487 | AMY28: -2.423806456e-17 | AMZ28: -0.1507462487 | ANB28: 0.1463125355 | ANC28: -2.352518031e-17 | AND28: -0.1463125355 | ANF28: 0.1421321774 | ANG28: -2.28530323e-17 | ANH28: -0.1421321774 | ANJ28: 0.1381840613 | ANK28: -2.221822584e-17 | ANL28: -0.1381840613 | ANN28: 0.134449357 | ANO28: -2.161773325e-17 | ANP28: -0.134449357 | ANR28: 0.130911216 | ANS28: -2.104884554e-17 | ANT28: -0.130911216 | ANV28: 0.1275545182 | ANW28: -2.050913155e-17 | ANX28: -0.1275545182 | ANZ28: 0.1243656552 | AOA28: -1.999640326e-17 | AOB28: -0.1243656552 | AOD28: -2.666187101e-17 | AOE28: -0.1658208736
ALU29: 280 | ALV29: 0.02604722665 | ALW29: -0.147721163 | AMB29: 280 | AMC29: 0.1680377056 | AMD29: 1.2168 | AME29: 1.48060224 | AMG29: 0.02917944136 | AMH29: -0.1654848353 | AMI29: 0.1680377056 | AMJ29: -1.396263402 | AML29: 0.1680377056 | AMM29: 0.02917944136 | AMN29: -0.1654848353 | AMP29: 0.1626171345 | AMQ29: 0.02823816905 | AMR29: -0.1601466148 | AMT29: 0.157535349 | AMU29: 0.02735572627 | AMV29: -0.1551420331 | AMX29: 0.1527615505 | AMY29: 0.02652676487 | AMZ29: -0.1504407593 | ANB29: 0.1482685638 | ANC29: 0.0257465659 | AND29: -0.1460160311 | ANF29: 0.1440323191 | ANG29: 0.02501094973 | ANH29: -0.1418441445 | ANJ29: 0.1400314213 | ANK29: 0.02431620113 | ANL29: -0.1379040294 | ANN29: 0.1362467883 | ANO29: 0.02365900651 | ANP29: -0.1341768935 | ANR29: 0.1326613465 | ANS29: 0.02303640107 | ANT29: -0.1306459226 | ANV29: 0.1292597735 | ANW29: 0.02244572412 | ANX29: -0.1272960271 | ANZ29: 0.1260282792 | AOA29: 0.02188458102 | AOB29: -0.1241136265 | AOD29: 0.02917944136 | AOE29: -0.1654848353
AM30: =ALZ22 -> 10.02 | AV30: =AM30-BN3 -> 0.07 | BE30: =BW3+AV30 -> 0.37 | BN30: =BW3/BE30 -> 0.8108108108 | ALU30: 290 | ALV30: 0.0513030215 | ALW30: -0.1409538931 | AMB30: 290 | AMC30: 0.1702692576 | AMD30: 1.2248 | AME30: 1.50013504 | AMG30: 0.05823551589 | AMH30: -0.1600007649 | AMI30: 0.1702692576 | AMJ30: -1.221730476 | AML30: 0.1702692576 | AMM30: 0.05823551589 | AMN30: -0.1600007649 | AMP30: 0.1647767009 | AMQ30: 0.05635695086 | AMR30: -0.1548394499 | AMT30: 0.159627429 | AMU30: 0.05459579615 | AMV30: -0.1500007171 | AMX30: 0.1547902342 | AMY30: 0.05294137808 | AMZ30: -0.1454552408 | ANB30: 0.1502375802 | ANC30: 0.05138427872 | AND30: -0.1411771455 | ANF30: 0.1459450779 | ANG30: 0.04991615648 | ANH30: -0.1371435128 | ANJ30: 0.141891048 | ANK30: 0.04852959657 | ANL30: -0.1333339708 | ANN30: 0.1380561548 | ANO30: 0.04721798586 | ANP30: -0.1297303499 | ANR30: 0.1344230981 | ANS30: 0.04597540728 | ANT30: -0.1263163934 | ANV30: 0.130976352 | ANW30: 0.04479655068 | ANX30: -0.1230775115 | ANZ30: 0.1277019432 | AOA30: 0.04367663692 | AOB30: -0.1200005737 | AOD30: 0.05823551589 | AOE30: -0.1600007649
ALU31: 300 | ALV31: 0.075 | ALW31: -0.1299038106 | AMB31: 300 | AMC31: 0.1725155296 | AMD31: 1.2328 | AME31: 1.51979584 | AMG31: 0.0862577648 | AMH31: -0.1494028312 | AMI31: 0.1725155296 | AMJ31: -1.047197551 | AML31: 0.1725155296 | AMM31: 0.0862577648 | AMN31: -0.1494028312 | AMP31: 0.1669505125 | AMQ31: 0.08347525626 | AMR31: -0.144583385 | AMT31: 0.161733309 | AMU31: 0.0808666545 | AMV31: -0.1400651542 | AMX31: 0.1568322996 | AMY31: 0.07841614982 | AMZ31: -0.1358207556 | ANB31: 0.1522195849 | ANC31: 0.07610979247 | AND31: -0.1318260275 | ANF31: 0.1478704539 | ANG31: 0.07393522697 | ANH31: -0.1280595696 | ANJ31: 0.1437629413 | ANK31: 0.07188147067 | ANL31: -0.1245023593 | ANN31: 0.1398774564 | ANO31: 0.06993872822 | ANP31: -0.1211374307 | ANR31: 0.1361964707 | ANS31: 0.06809823537 | ANT31: -0.1179496036 | ANV31: 0.1327042535 | ANW31: 0.06635212677 | ANX31: -0.1149252548 | ANZ31: 0.1293866472 | AOA31: 0.0646933236 | AOB31: -0.1120521234 | AOD31: 0.0862577648 | AOE31: -0.1494028312
ALU32: 310 | ALV32: 0.09641814145 | ALW32: -0.1149066665 | AMB32: 310 | AMC32: 0.1747765216 | AMD32: 1.2408 | AME32: 1.53958464 | AMG32: 0.1123441825 | AMH32: -0.1338865832 | AMI32: 0.1747765216 | AMJ32: -0.872664626 | AML32: 0.1747765216 | AMM32: 0.1123441825 | AMN32: -0.1338865832 | AMP32: 0.1691385693 | AMQ32: 0.1087201767 | AMR32: -0.1295676611 | AMT32: 0.163852989 | AMU32: 0.1053226711 | AMV32: -0.1255186717 | AMX32: 0.1588877469 | AMY32: 0.102131075 | AMZ32: -0.1217150756 | ANB32: 0.1542145779 | ANC32: 0.0991272199 | AND32: -0.1181352204 | ANF32: 0.1498084471 | ANG32: 0.09629501361 | ANH32: -0.1147599284 | ANJ32: 0.1456471013 | ANK32: 0.09362015212 | ANL32: -0.1115721526 | ANN32: 0.1417106932 | ANO32: 0.09108987774 | ANP32: -0.108556689 | ANR32: 0.1379814644 | ANS32: 0.0886927757 | ANT32: -0.1056999341 | ANV32: 0.1344434782 | ANW32: 0.08641860196 | ANX32: -0.1029896794 | ANZ32: 0.1310823912 | AOA32: 0.08425813691 | AOB32: -0.1004149374 | AOD32: 0.1123441825 | AOE32: -0.1338865832
AM33: =ALZ23 -> 10.03 | AV33: =AM33-BN3 -> 0.08 | BE33: =BW3+AV33 -> 0.38 | BN33: =BW3/BE33 -> 0.7894736842 | ALU33: 320 | ALV33: 0.1149066665 | ALW33: -0.09641814145 | AMB33: 320 | AMC33: 0.1770522336 | AMD33: 1.2488 | AME33: 1.55950144 | AMG33: 0.1356298797 | AMH33: -0.113806982 | AMI33: 0.1770522336 | AMJ33: -0.6981317008 | AML33: 0.1770522336 | AMM33: 0.1356298797 | AMN33: -0.113806982 | AMP33: 0.1713408712 | AMQ33: 0.1312547223 | AMR33: -0.1101357891 | AMT33: 0.165986469 | AMU33: 0.1271530122 | AMV33: -0.1066940456 | AMX33: 0.160956576 | AMY33: 0.1232998906 | AMZ33: -0.1034608928 | ANB33: 0.1562225591 | ANC33: 0.1196734233 | AND33: -0.1004179253 | ANF33: 0.1517590574 | ANG33: 0.1162541826 | ANH33: -0.09754884174 | ANJ33: 0.147543528 | ANK33: 0.1130248997 | ANL33: -0.09483915169 | ANN33: 0.1435558651 | ANO33: 0.1099701727 | ANP33: -0.09227593137 | ANR33: 0.1397780792 | ANS33: 0.1070762208 | ANT33: -0.08984761739 | ANV33: 0.1361940258 | ANW33: 0.1043306767 | ANX33: -0.08754383233 | ANZ33: 0.1327891752 | AOA33: 0.1017224098 | AOB33: -0.08535523652 | AOD33: 0.1356298797 | AOE33: -0.113806982
ALU34: 330 | ALV34: 0.1299038106 | ALW34: -0.075 | AMB34: 330 | AMC34: 0.1793426656 | AMD34: 1.2568 | AME34: 1.57954624 | AMG34: 0.1553153044 | AMH34: -0.0896713328 | AMI34: 0.1793426656 | AMJ34: -0.5235987756 | AML34: 0.1793426656 | AMM34: 0.1553153044 | AMN34: -0.0896713328 | AMP34: 0.1735574183 | AMQ34: 0.1503051333 | AMR34: -0.08677870916 | AMT34: 0.168133749 | AMU34: 0.1456080979 | AMV34: -0.0840668745 | AMX34: 0.1630387869 | AMY34: 0.1411957313 | AMZ34: -0.08151939345 | ANB34: 0.1582435285 | ANC34: 0.1370429156 | AND34: -0.07912176424 | ANF34: 0.1537222848 | ANG34: 0.1331274038 | ANH34: -0.0768611424 | ANJ34: 0.1494522213 | ANK34: 0.1294294203 | ANL34: -0.07472611067 | ANN34: 0.1454129721 | ANO34: 0.1259313279 | ANP34: -0.07270648605 | ANR34: 0.1415863149 | ANS34: 0.1226173456 | ANT34: -0.07079315747 | ANV34: 0.1379558966 | ANW34: 0.1194733111 | ANX34: -0.06897794831 | ANZ34: 0.1345069992 | AOA34: 0.1164864783 | AOB34: -0.0672534996 | AOD34: 0.1553153044 | AOE34: -0.0896713328
ALU35: 340 | ALV35: 0.1409538931 | ALW35: -0.0513030215 | AMB35: 340 | AMC35: 0.1816478176 | AMD35: 1.2648 | AME35: 1.59971904 | AMG35: 0.1706931138 | AMH35: -0.06212721261 | AMI35: 0.1816478176 | AMJ35: -0.3490658504 | AML35: 0.1816478176 | AMM35: 0.1706931138 | AMN35: -0.06212721261 | AMP35: 0.1757882106 | AMQ35: 0.1651868843 | AMR35: -0.06012310898 | AMT35: 0.170294829 | AMU35: 0.1600247942 | AMV35: -0.05824426182 | AMX35: 0.1651343796 | AMY35: 0.155175558 | AMZ35: -0.05647928419 | ANB35: 0.1602774861 | ANC35: 0.150611571 | AND35: -0.05481812877 | ANF35: 0.1556981294 | ANG35: 0.1463083832 | ANH35: -0.05325189652 | ANJ35: 0.1513731813 | ANK35: 0.1422442615 | ANL35: -0.05177267718 | ANN35: 0.1472820143 | ANO35: 0.138399822 | ANP35: -0.05037341563 | ANR35: 0.1434061718 | ANS35: 0.1347577214 | ANT35: -0.04904779943 | ANV35: 0.1397290905 | ANW35: 0.1313023952 | ANX35: -0.04779016355 | ANZ35: 0.1362358632 | AOA35: 0.1280198353 | AOB35: -0.04659540946 | AOD35: 0.1706931138 | AOE35: -0.06212721261
AM36: =ALZ24 -> 10.04 | AV36: =AM36-BN3 -> 0.09 | BE36: =BW3+AV36 -> 0.39 | BN36: =BW3/BE36 -> 0.7692307692 | ALU36: 350 | ALV36: 0.147721163 | ALW36: -0.02604722665 | AMB36: 350 | AMC36: 0.1839676896 | AMD36: 1.2728 | AME36: 1.62001984 | AMG36: 0.181172807 | AMH36: -0.03194565405 | AMI36: 0.1839676896 | AMJ36: -0.1745329252 | AML36: 0.1839676896 | AMM36: 0.181172807 | AMN36: -0.03194565405 | AMP36: 0.178033248 | AMQ36: 0.1753285229 | AMR36: -0.03091514908 | AMT36: 0.172469709 | AMU36: 0.1698495066 | AMV36: -0.02994905067 | AMX36: 0.1672433542 | AMY36: 0.1647025518 | AMZ36: -0.02904150368 | ANB36: 0.162324432 | ANC36: 0.1598583591 | AND36: -0.02818734181 | ANF36: 0.1576865911 | ANG36: 0.1552909774 | ANH36: -0.02738198918 | ANJ36: 0.153306408 | ANK36: 0.1509773392 | ANL36: -0.02662137837 | ANN36: 0.1491629916 | ANO36: 0.1468968706 | ANP36: -0.02590188166 | ANR36: 0.1452376497 | ANS36: 0.1430311634 | ANT36: -0.0252202532 | ANV36: 0.1415136074 | ANW36: 0.1393636977 | ANX36: -0.02457358004 | ANZ36: 0.1379757672 | AOA36: 0.1358796053 | AOB36: -0.02395924054 | AOD36: 0.181172807 | AOE36: -0.03194565405
ALU37: 360 | ALV37: 0.15 | ALW37: -3.675445365e-17 | AMB37: 360 | AMC37: 0.1863022816 | AMD37: 1.2808 | AME37: 1.64044864 | AMG37: 0.1863022816 | AMH37: -4.564959049e-17 | AMI37: 0.1863022816 | AMJ37: -2.45029691e-16 | AML37: 0.1863022816 | AMM37: 0.1863022816 | AMN37: -4.564959049e-17 | AMP37: 0.1802925306 | AMQ37: 0.1802925306 | AMR37: -4.417702305e-17 | AMT37: 0.174658389 | AMU37: 0.174658389 | AMV37: -4.279649108e-17 | AMX37: 0.1693657105 | AMY37: 0.1693657105 | AMZ37: -4.149962772e-17 | ANB37: 0.1643843661 | ANC37: 0.1643843661 | AND37: -4.027905043e-17 | ANF37: 0.1596876699 | ANG37: 0.1596876699 | ANH37: -3.912822042e-17 | ANJ37: 0.1552519013 | ANK37: 0.1552519013 | ANL37: -3.804132541e-17 | ANN37: 0.151055904 | ANO37: 0.151055904 | ANP37: -3.701318148e-17 | ANR37: 0.1470807486 | ANS37: 0.1470807486 | ANT37: -3.603915039e-17 | ANV37: 0.1433094474 | ANW37: 0.1433094474 | ANX37: -3.511506961e-17 | ANZ37: 0.1397267112 | AOA37: 0.1397267112 | AOB37: -3.423719287e-17 | AOD37: 0.1863022816 | AOE37: -4.564959049e-17
ALU38: 370 | ALV38: 0.147721163 | ALW38: 0.02604722665 | AMB38: 370 | AMC38: 0.1886515936 | AMD38: 1.2888 | AME38: 1.66100544 | AMG38: 0.185785552 | AMH38: 0.03275900544 | AMI38: 0.1886515936 | AMJ38: 0.1745329252 | AML38: 0.1886515936 | AMM38: 0.185785552 | AMN38: 0.03275900544 | AMP38: 0.1825660583 | AMQ38: 0.1797924697 | AMR38: 0.03170226333 | AMT38: 0.176860869 | AMU38: 0.174173955 | AMV38: 0.0307115676 | AMX38: 0.1715014487 | AMY38: 0.1688959564 | AMZ38: 0.02978091404 | ANB38: 0.1664572885 | ANC38: 0.1639284282 | AND38: 0.0289050048 | ANF38: 0.1617013659 | ANG38: 0.1592447589 | ANH38: 0.02807914752 | ANJ38: 0.1572096613 | ANK38: 0.1548212933 | ANL38: 0.0272991712 | ANN38: 0.1529607516 | ANO38: 0.1506369341 | ANP38: 0.02656135576 | ANR38: 0.1489354686 | ANS38: 0.1466728042 | ANT38: 0.02586237272 | ANV38: 0.1451166105 | ANW38: 0.1429119631 | ANX38: 0.02519923496 | ANZ38: 0.1414886952 | AOA38: 0.139339164 | AOB38: 0.02456925408 | AOD38: 0.185785552 | AOE38: 0.03275900544
AM39: =ALZ25 -> 10.05 | AV39: =AM39-BN3 -> 0.1 | BE39: =BW3+AV39 -> 0.4 | BN39: =BW3/BE39 -> 0.75 | AMB39: 380 | AMC39: 0.1910156256 | AMD39: 1.2968 | AME39: 1.68169024 | AMG39: 0.1794959738 | AMH39: 0.06533119165 | AMI39: 0.1910156256 | AMJ39: 0.3490658504 | AML39: 0.1910156256 | AMM39: 0.1794959738 | AMN39: 0.06533119165 | AMP39: 0.1848538312 | AMQ39: 0.1737057811 | AMR39: 0.06322373385 | AMT39: 0.179077149 | AMU39: 0.1682774755 | AMV39: 0.06124799217 | AMX39: 0.1736505687 | AMY39: 0.163178158 | AMZ39: 0.0593919924 | ANB39: 0.1685431991 | ANC39: 0.1583788004 | AND39: 0.0576451691 | ANF39: 0.1637276791 | ANG39: 0.1538536919 | ANH39: 0.05599816427 | ANJ39: 0.159179688 | ANK39: 0.1495799782 | ANL39: 0.0544426597 | ANN39: 0.1548775343 | ANO39: 0.1455372761 | ANP39: 0.05297123647 | ANR39: 0.1508018097 | ANS39: 0.1417073478 | ANT39: 0.05157725656 | ANV39: 0.1469350966 | ANW39: 0.138073826 | ANX39: 0.0502547628 | ANZ39: 0.1432617192 | AOA39: 0.1346219804 | AOB39: 0.04899839373 | AOD39: 0.1794959738 | AOE39: 0.06533119165
AMB40: 390 | AMC40: 0.1933943776 | AMD40: 1.3048 | AME40: 1.70250304 | AMG40: 0.167484444 | AMH40: 0.0966971888 | AMI40: 0.1933943776 | AMJ40: 0.5235987756 | AML40: 0.1933943776 | AMM40: 0.167484444 | AMN40: 0.0966971888 | AMP40: 0.1871558493 | AMQ40: 0.16208172 | AMR40: 0.09357792465 | AMT40: 0.181307229 | AMU40: 0.1570166662 | AMV40: 0.0906536145 | AMX40: 0.1758130705 | AMY40: 0.1522585854 | AMZ40: 0.08790653527 | ANB40: 0.1706420979 | ANC40: 0.1477803917 | AND40: 0.08532104894 | ANF40: 0.1657666094 | ANG40: 0.1435580948 | ANH40: 0.08288330469 | ANJ40: 0.1611619813 | ANK40: 0.13957037 | ANL40: 0.08058099067 | ANN40: 0.1568062521 | ANO40: 0.1357981978 | ANP40: 0.07840312605 | ANR40: 0.1526797718 | ANS40: 0.132224561 | ANT40: 0.07633988589 | ANV40: 0.1487649058 | ANW40: 0.1288341877 | ANX40: 0.07438245292 | ANZ40: 0.1450457832 | AOA40: 0.125613333 | AOB40: 0.0725228916 | AOD40: 0.167484444 | AOE40: 0.0966971888
C41: Rechnerische Verschiebung der Ist-Punkte in radialer Richtung | AMB41: 400 | AMC41: 0.1957878496 | AMD41: 1.3128 | AME41: 1.72344384 | AMG41: 0.1499821942 | AMH41: 0.1258500039 | AMI41: 0.1957878496 | AMJ41: 0.6981317008 | AML41: 0.1957878496 | AMM41: 0.1499821942 | AMN41: 0.1258500039 | AMP41: 0.1894721125 | AMQ41: 0.1451440589 | AMR41: 0.1217903263 | AMT41: 0.183551109 | AMU41: 0.1406083071 | AMV41: 0.1179843786 | AMX41: 0.1779889542 | AMY41: 0.1363474493 | AMZ41: 0.1144090944 | ANB41: 0.1727539849 | ANC41: 0.1323372302 | AND41: 0.111044121 | ANF41: 0.1678181568 | ANG41: 0.1285561665 | ANH41: 0.1078714319 | ANJ41: 0.1631565413 | ANK41: 0.1249851618 | ANL41: 0.1048750032 | ANN41: 0.1587469051 | ANO41: 0.1216071845 | ANP41: 0.1020405437 | ANR41: 0.1545693549 | ANS41: 0.1184069954 | ANT41: 0.0993552662 | ANV41: 0.1506060382 | ANW41: 0.1153709186 | ANX41: 0.09680769527 | ANZ41: 0.1468408872 | AOA41: 0.1124866457 | AOB41: 0.09438750289 | AOD41: 0.1499821942 | AOE41: 0.1258500039
AMB42: 410 | AMC42: 0.1981960416 | AMD42: 1.3208 | AME42: 1.74451264 | AMG42: 0.1273979598 | AMH42: 0.1518269763 | AMI42: 0.1981960416 | AMJ42: 0.872664626 | AML42: 0.1981960416 | AMM42: 0.1273979598 | AMN42: 0.1518269763 | AMP42: 0.1918026209 | AMQ42: 0.1232883482 | AMR42: 0.1469293319 | AMT42: 0.185808789 | AMU42: 0.1194355873 | AMV42: 0.1423377903 | AMX42: 0.1801782196 | AMY42: 0.1158163271 | AMZ42: 0.1380245239 | ANB42: 0.1748788602 | ANC42: 0.1124099646 | AND42: 0.1339649791 | ANF42: 0.1698823214 | ANG42: 0.1091982513 | ANH42: 0.1301374083 | ANJ42: 0.165163368 | ANK42: 0.1061649665 | ANL42: 0.1265224803 | ANN42: 0.1606994932 | ANO42: 0.1032956431 | ANP42: 0.1231029538 | ANR42: 0.1564705592 | ANS42: 0.1005773367 | ANT42: 0.1198634024 | ANV42: 0.1524584935 | ANW42: 0.09799843064 | ANX42: 0.1167899818 | ANZ42: 0.1486470312 | AOA42: 0.09554846987 | AOB42: 0.1138702322 | AOD42: 0.1273979598 | AOE42: 0.1518269763
AMB43: 420 | AMC43: 0.2006189536 | AMD43: 1.3288 | AME43: 1.76570944 | AMG43: 0.1003094768 | AMH43: 0.1737411103 | AMI43: 0.2006189536 | AMJ43: 1.047197551 | AML43: 0.2006189536 | AMM43: 0.1003094768 | AMN43: 0.1737411103 | AMP43: 0.1941473745 | AMQ43: 0.09707368723 | AMR43: 0.1681365584 | AMT43: 0.188080269 | AMU43: 0.0940401345 | AMV43: 0.1628822909 | AMX43: 0.1823808669 | AMY43: 0.09119043345 | AMZ43: 0.1579464639 | ANB43: 0.1770167238 | ANC43: 0.08850836188 | AND43: 0.1533009797 | ANF43: 0.1719591031 | ANG43: 0.08597955154 | ANH43: 0.1489209517 | ANJ43: 0.1671824613 | ANK43: 0.08359123067 | ANL43: 0.1447842586 | ANN43: 0.1626640164 | ANO43: 0.08133200822 | ANP43: 0.1408711705 | ANR43: 0.1583833844 | ANS43: 0.07919169221 | ANT43: 0.1371640344 | ANV43: 0.154322272 | ANW43: 0.077161136 | ANX43: 0.1336470079 | ANZ43: 0.1504642152 | AOA43: 0.0752321076 | AOB43: 0.1303058327 | AOD43: 0.1003094768 | AOE43: 0.1737411103
AMB44: 430 | AMC44: 0.2030565856 | AMD44: 1.3368 | AME44: 1.78703424 | AMG44: 0.06944944251 | AMH44: 0.1908107751 | AMI44: 0.2030565856 | AMJ44: 1.221730476 | AML44: 0.2030565856 | AMM44: 0.06944944251 | AMN44: 0.1908107751 | AMP44: 0.1965063732 | AMQ44: 0.06720913791 | AMR44: 0.1846555888 | AMT44: 0.190365549 | AMU44: 0.06510885235 | AMV44: 0.1788851016 | AMX44: 0.184596896 | AMY44: 0.06313585683 | AMZ44: 0.173464341 | ANB44: 0.1791675755 | ANC44: 0.06127891986 | AND44: 0.1683624486 | ANF44: 0.1740485019 | ANG44: 0.05952809358 | ANH44: 0.1635520929 | ANJ44: 0.1692138213 | ANK44: 0.05787453543 | ANL44: 0.1590089792 | ANN44: 0.1646404748 | ANO44: 0.05631035879 | ANP44: 0.1547114393 | ANR44: 0.1603078307 | ANS44: 0.05482850724 | ANT44: 0.1506400856 | ANV44: 0.1561973735 | ANW44: 0.05342264808 | ANX44: 0.1467775193 | ANZ44: 0.1522924392 | AOA44: 0.05208708188 | AOB44: 0.1431080813 | AOD44: 0.06944944251 | AOE44: 0.1908107751
AMB45: 440 | AMC45: 0.2055089376 | AMD45: 1.3448 | AME45: 1.80848704 | AMG45: 0.03568625251 | AMH45: 0.2023867951 | AMI45: 0.2055089376 | AMJ45: 1.396263402 | AML45: 0.2055089376 | AMM45: 0.03568625251 | AMN45: 0.2023867951 | AMP45: 0.198879617 | AMQ45: 0.03453508307 | AMR45: 0.1958581888 | AMT45: 0.192664629 | AMU45: 0.03345586173 | AMV45: 0.1897376204 | AMX45: 0.1868263069 | AMY45: 0.03244204774 | AMZ45: 0.1839879955 | ANB45: 0.1813314155 | ANC45: 0.03148786986 | AND45: 0.1785765839 | ANF45: 0.1761505179 | ANG45: 0.03058821644 | ANH45: 0.1734743958 | ANJ45: 0.171257448 | ANK45: 0.02973854376 | ANL45: 0.1686556626 | ANN45: 0.1666288683 | ANO45: 0.02893479933 | ANP45: 0.1640974014 | ANR45: 0.1622438981 | ANS45: 0.02817335724 | ANT45: 0.1597790487 | ANV45: 0.1580837982 | ANW45: 0.02745096347 | ANX45: 0.15568215 | ANZ45: 0.1541317032 | AOA45: 0.02676468938 | AOB45: 0.1517900963 | AOD45: 0.03568625251 | AOE45: 0.2023867951
AMB46: 450 | AMC46: 0.2079760096 | AMD46: 1.3528 | AME46: 1.83006784 | AMG46: 6.37003717e-17 | AMH46: 0.2079760096 | AMI46: 0.2079760096 | AMJ46: 1.570796327 | AML46: 0.2079760096 | AMM46: 5.892002523e-17 | AMN46: 0.2079760096 | AMP46: 0.2012671061 | AMQ46: 5.701937925e-17 | AMR46: 0.2012671061 | AMT46: 0.194977509 | AMU46: 5.523752365e-17 | AMV46: 0.194977509 | AMX46: 0.1890690996 | AMY46: 5.35636593e-17 | AMZ46: 0.1890690996 | ANB46: 0.1835082438 | ANC46: 5.198825755e-17 | AND46: 0.1835082438 | ANF46: 0.1782651511 | ANG46: 5.050287877e-17 | ANH46: 0.1782651511 | ANJ46: 0.1733133413 | ANK46: 4.910002102e-17 | ANL46: 0.1733133413 | ANN46: 0.168629197 | ANO46: 4.777299343e-17 | ANP46: 0.168629197 | ANR46: 0.1641915865 | ANS46: 4.651580939e-17 | ANT46: 0.1641915865 | ANV46: 0.1599815458 | ANW46: 4.532309633e-17 | ANX46: 0.1599815458 | ANZ46: 0.1559820072 | AOA46: 4.419001892e-17 | AOB46: 0.1559820072 | AOD46: 5.892002523e-17 | AOE46: 0.2079760096
AMB47: 460 | AMC47: 0.2104578016 | AMD47: 1.3608 | AME47: 1.85177664 | AMG47: -0.03654561372 | AMH47: 0.2072604747 | AMI47: 0.2104578016 | AMJ47: 1.745329252 | AML47: 0.2104578016 | AMM47: -0.03654561372 | AMN47: 0.2072604747 | AMP47: 0.2036688403 | AMQ47: -0.03536672296 | AMR47: 0.2005746529 | AMT47: 0.197304189 | AMU47: -0.03426151287 | AMV47: 0.194306695 | AMX47: 0.1913252742 | AMY47: -0.0332232852 | AMZ47: 0.1884186134 | ANB47: 0.1856980602 | ANC47: -0.03224612976 | AND47: 0.1828768894 | ANF47: 0.1803924014 | ANG47: -0.03132481176 | ANH47: 0.1776518355 | ANJ47: 0.1753815013 | ANK47: -0.0304546781 | ANL47: 0.1727170622 | ANN47: 0.1706414608 | ANO47: -0.02963157869 | ANP47: 0.1680490335 | ANR47: 0.166150896 | ANS47: -0.02885180031 | ANT47: 0.1636266906 | ANV47: 0.1618906166 | ANW47: -0.02811201056 | ANX47: 0.1594311344 | ANZ47: 0.1578433512 | AOA47: -0.02740921029 | AOB47: 0.155445356 | AOD47: -0.03654561372 | AOE47: 0.2072604747
AMB48: 470 | AMC48: 0.2129543136 | AMD48: 1.3688 | AME48: 1.87361344 | AMG48: -0.07283466486 | AMH48: 0.2001115971 | AMI48: 0.2129543136 | AMJ48: 1.919862177 | AML48: 0.2129543136 | AMM48: -0.07283466486 | AMN48: 0.2001115971 | AMP48: 0.2060848196 | AMQ48: -0.07048515954 | AMR48: 0.1936563842 | AMT48: 0.199644669 | AMU48: -0.06828249831 | AMV48: 0.1876046222 | AMX48: 0.1935948305 | AMY48: -0.06621333169 | AMZ48: 0.1819196337 | ANB48: 0.1879008649 | ANC48: -0.06426588076 | AND48: 0.1765690562 | ANF48: 0.1825322688 | ANG48: -0.06242971274 | ANH48: 0.171524226 | ANJ48: 0.177461928 | ANK48: -0.06069555405 | ANL48: 0.1667596642 | ANN48: 0.1726656597 | ANO48: -0.05905513367 | ANP48: 0.1622526463 | ANR48: 0.1681218265 | ANS48: -0.0575010512 | ANT48: 0.1579828398 | ANV48: 0.1638110105 | ANW48: -0.05602666528 | ANX48: 0.1539319977 | ANZ48: 0.1597157352 | AOA48: -0.05462599864 | AOB48: 0.1500836978 | AOD48: -0.07283466486 | AOE48: 0.2001115971
AMB49: 480 | AMC49: 0.2154655456 | AMD49: 1.3768 | AME49: 1.89557824 | AMG49: -0.1077327728 | AMH49: 0.1865986361 | AMI49: 0.2154655456 | AMJ49: 2.094395102 | AML49: 0.2154655456 | AMM49: -0.1077327728 | AMN49: 0.1865986361 | AMP49: 0.2085150441 | AMQ49: -0.1042575221 | AMR49: 0.1805793253 | AMT49: 0.201998949 | AMU49: -0.1009994745 | AMV49: 0.1749362214 | AMX49: 0.1958777687 | AMY49: -0.09793888436 | AMZ49: 0.1696351238 | ANB49: 0.1901166579 | ANC49: -0.09505832894 | AND49: 0.1646458554 | ANF49: 0.1846847534 | ANG49: -0.09234237669 | ANH49: 0.1599416881 | ANJ49: 0.1795546213 | ANK49: -0.08977731067 | ANL49: 0.1554988634 | ANN49: 0.1747017937 | ANO49: -0.08735089686 | ANP49: 0.1512961915 | ANR49: 0.1701043781 | ANS49: -0.08505218905 | ANT49: 0.1473147127 | ANV49: 0.1657427274 | ANW49: -0.08287136369 | ANX49: 0.1435374124 | ANZ49: 0.1615991592 | AOA49: -0.0807995796 | AOB49: 0.1399489771 | AOD49: -0.1077327728 | AOE49: 0.1865986361
AMB50: 490 | AMC50: 0.2179914976 | AMD50: 1.3848 | AME50: 1.91767104 | AMG50: -0.1401222337 | AMH50: 0.1669911754 | AMI50: 0.2179914976 | AMJ50: 2.268928028 | AML50: 0.2179914976 | AMM50: -0.1401222337 | AMN50: 0.1669911754 | AMP50: 0.2109595138 | AMQ50: -0.1356021616 | AMR50: 0.1616043633 | AMT50: 0.204367029 | AMU50: -0.1313645941 | AMV50: 0.1565542269 | AMX50: 0.1981740887 | AMY50: -0.1273838488 | AMZ50: 0.1518101594 | ANB50: 0.1923454391 | ANC50: -0.123637265 | AND50: 0.1473451548 | ANF50: 0.1868498551 | ANG50: -0.1201047717 | ANH50: 0.1431352932 | ANJ50: 0.1816595813 | ANK50: -0.1167685281 | ANL50: 0.1391593128 | ANN50: 0.1767498629 | ANO50: -0.1136126219 | ANP50: 0.1353982503 | ANR50: 0.1720985507 | ANS50: -0.1106228161 | ANT50: 0.1318351385 | ANV50: 0.1676857674 | ANW50: -0.1077863336 | ANX50: 0.1284547503 | ANZ50: 0.1634936232 | AOA50: -0.1050916753 | AOB50: 0.1252433815 | AOD50: -0.1401222337 | AOE50: 0.1669911754
AMB51: 500 | AMC51: 0.2205321696 | AMD51: 1.3928 | AME51: 1.93989184 | AMG51: -0.1689374431 | AMH51: 0.1417553462 | AMI51: 0.2205321696 | AMJ51: 2.443460953 | AML51: 0.2205321696 | AMM51: -0.1689374431 | AMN51: 0.1417553462 | AMP51: 0.2134182286 | AMQ51: -0.1634878481 | AMR51: 0.1371825931 | AMT51: 0.206748909 | AMU51: -0.1583788529 | AMV51: 0.132895637 | AMX51: 0.2004837905 | AMY51: -0.1535794937 | AMZ51: 0.1288684965 | ANB51: 0.1945872085 | ANC51: -0.1490624498 | AND51: 0.1250782466 | ANF51: 0.1890275739 | ANG51: -0.1448035226 | ANH51: 0.1215045824 | ANJ51: 0.183776808 | ANK51: -0.1407812025 | ANL51: 0.1181294551 | ANN51: 0.1788098672 | ANO51: -0.1369763052 | ANP51: 0.1149367672 | ANR51: 0.1741043444 | ANS51: -0.1333716656 | ANT51: 0.1119121154 | ANV51: 0.1696401305 | ANW51: -0.1299518793 | ANX51: 0.109042574 | ANZ51: 0.1653991272 | AOA51: -0.1267030823 | AOB51: 0.1063165096 | AOD51: -0.1689374431 | AOE51: 0.1417553462
AMB52: 510 | AMC52: 0.2230875616 | AMD52: 1.4008 | AME52: 1.96224064 | AMG52: -0.1931994956 | AMH52: 0.1115437808 | AMI52: 0.2230875616 | AMJ52: 2.617993878 | AML52: 0.2230875616 | AMM52: -0.1931994956 | AMN52: 0.1115437808 | AMP52: 0.2158911886 | AMQ52: -0.1869672538 | AMR52: 0.1079455943 | AMT52: 0.209144589 | AMU52: -0.1811245271 | AMV52: 0.1045722945 | AMX52: 0.2028068742 | AMY52: -0.1756359051 | AMZ52: 0.1014034371 | ANB52: 0.1968419661 | ANC52: -0.1704701432 | AND52: 0.09842098306 | ANF52: 0.1912179099 | ANG52: -0.1655995677 | ANH52: 0.09560895497 | ANJ52: 0.1859063013 | ANK52: -0.1609995797 | ANL52: 0.09295315067 | ANN52: 0.1808818067 | ANO52: -0.1566482397 | ANP52: 0.09044090335 | ANR52: 0.1761217592 | ANS52: -0.1525259176 | ANT52: 0.08806087958 | ANV52: 0.1716058166 | ANW52: -0.1486149966 | ANX52: 0.08580290831 | ANZ52: 0.1673156712 | AOA52: -0.1448996217 | AOB52: 0.0836578356 | AOD52: -0.1931994956 | AOE52: 0.1115437808
AMB53: 520 | AMC53: 0.2256576736 | AMD53: 1.4088 | AME53: 1.98471744 | AMG53: -0.2120488507 | AMH53: 0.07717946987 | AMI53: 0.2256576736 | AMJ53: 2.792526803 | AML53: 0.2256576736 | AMM53: -0.2120488507 | AMN53: 0.07717946987 | AMP53: 0.2183783938 | AMQ53: -0.2052085652 | AMR53: 0.07468980955 | AMT53: 0.211554069 | AMU53: -0.1987957975 | AMV53: 0.072355753 | AMX53: 0.2051433396 | AMY53: -0.1927716825 | AMZ53: 0.07016315442 | ANB53: 0.199109712 | ANC53: -0.1871019271 | AND53: 0.06809953224 | ANF53: 0.1934208631 | ANG53: -0.1817561577 | ANH53: 0.06615383131 | ANJ53: 0.1880480613 | ANK53: -0.1767073756 | ANL53: 0.06431622489 | ANN53: 0.1829656813 | ANO53: -0.1719315006 | ANP53: 0.06257794854 | ANR53: 0.1781507949 | ANS53: -0.1674069874 | ANT53: 0.06093116042 | ANV53: 0.1735828258 | ANW53: -0.1631145005 | ANX53: 0.05936882297 | ANZ53: 0.1692432552 | AOA53: -0.159036638 | AOB53: 0.0578846024 | AOD53: -0.2120488507 | AOE53: 0.07717946987
AMB54: 530 | AMC54: 0.2282425056 | AMD54: 1.4168 | AME54: 2.00732224 | AMG54: -0.2247749891 | AMH54: 0.03963389516 | AMI54: 0.2282425056 | AMJ54: 2.967059728 | AML54: 0.2282425056 | AMM54: -0.2247749891 | AMN54: 0.03963389516 | AMP54: 0.2208798441 | AMQ54: -0.217524183 | AMR54: 0.03835538242 | AMT54: 0.213977349 | AMU54: -0.2107265523 | AMV54: 0.03715677672 | AMX54: 0.2074931869 | AMY54: -0.2043408992 | AMZ54: 0.03603081379 | ANB54: 0.2013904461 | ANC54: -0.1983308727 | AND54: 0.03497108397 | ANF54: 0.1956364334 | ANG54: -0.1926642764 | ANH54: 0.03397191014 | ANJ54: 0.190202088 | ANK54: -0.1873124909 | ANL54: 0.03302824597 | ANN54: 0.185061491 | ANO54: -0.1822499911 | ANP54: 0.03213559067 | ANR54: 0.1801914518 | ANS54: -0.1774539387 | ANT54: 0.03128991723 | ANV54: 0.1755711582 | ANW54: -0.1729038378 | ANX54: 0.03048761166 | ANZ54: 0.1711818792 | AOA54: -0.1685812418 | AOB54: 0.02972542137 | AOD54: -0.2247749891 | AOE54: 0.03963389516
AMB55: 540 | AMC55: 0.2308420576 | AMD55: 1.4248 | AME55: 2.03005504 | AMG55: -0.2308420576 | AMH55: 8.484473706e-17 | AMI55: 0.2308420576 | AMJ55: 3.141592654 | AML55: 0.2308420576 | AMM55: -0.2308420576 | AMN55: 1.30796046e-16 | AMP55: 0.2233955396 | AMQ55: -0.2233955396 | AMR55: 1.265768187e-16 | AMT55: 0.216414429 | AMU55: -0.216414429 | AMV55: 1.226212931e-16 | AMX55: 0.209856416 | AMY55: -0.209856416 | AMZ55: 1.189054963e-16 | ANB55: 0.2036841685 | ANC55: -0.2036841685 | AND55: 1.154082759e-16 | ANF55: 0.1978646208 | ANG55: -0.1978646208 | ANH55: 1.121108966e-16 | ANJ55: 0.1923683813 | ANK55: -0.1923683813 | ANL55: 1.08996705e-16 | ANN55: 0.1871692359 | ANO55: -0.1871692359 | ANP55: 1.060508481e-16 | ANR55: 0.1822437297 | ANS55: -0.1822437297 | ANT55: 1.032600363e-16 | ANV55: 0.1775708135 | ANW55: -0.1775708135 | ANX55: 1.006123431e-16 | ANZ55: 0.1731315432 | AOA55: -0.1731315432 | AOB55: 9.809703448e-17 | AOD55: -0.2308420576 | AOE55: 1.30796046e-16
AMB56: 550 | AMC56: 0.2334563296 | AMD56: 1.4328 | AME56: 2.05291584 | AMG56: -0.2299096034 | AMH56: -0.0405392662 | AMI56: 0.2334563296 | AMJ56: -2.967059728 | AML56: 0.2334563296 | AMM56: -0.2299096034 | AMN56: -0.0405392662 | AMP56: 0.2259254803 | AMQ56: -0.2224931646 | AMR56: -0.03923154794 | AMT56: 0.218865309 | AMU56: -0.2155402532 | AMV56: -0.03800556206 | AMX56: 0.2122330269 | AMY56: -0.2090087303 | AMZ56: -0.03685387836 | ANB56: 0.2059908791 | ANC56: -0.2028614147 | AND56: -0.03576994076 | ANF56: 0.2001054254 | ANG56: -0.1970653743 | ANH56: -0.03474794246 | ANJ56: 0.1945469413 | ANK56: -0.1915913361 | ANL56: -0.03378272183 | ANN56: 0.1892889159 | ANO56: -0.1864131919 | ANP56: -0.0328696753 | ANR56: 0.1843076286 | ANS56: -0.1815075816 | ANT56: -0.03200468384 | ANV56: 0.179581792 | ANW56: -0.1768535411 | ANX56: -0.03118405092 | ANZ56: 0.1750922472 | AOA56: -0.1724322025 | AOB56: -0.03040444965 | AOD56: -0.2299096034 | AOE56: -0.0405392662
AMB57: 560 | AMC57: 0.2360853216 | AMD57: 1.4408 | AME57: 2.07590464 | AMG57: -0.2218476346 | AMH57: -0.08074593553 | AMI57: 0.2360853216 | AMJ57: -2.792526803 | AML57: 0.2360853216 | AMM57: -0.2218476346 | AMN57: -0.08074593553 | AMP57: 0.2284696661 | AMQ57: -0.2146912593 | AMR57: -0.07814122793 | AMT57: 0.221329989 | AMU57: -0.2079821574 | AMV57: -0.07569931456 | AMX57: 0.2146230196 | AMY57: -0.2016796678 | AMZ57: -0.07340539594 | ANB57: 0.2083105779 | ANC57: -0.1957479129 | AND57: -0.0712464137 | ANF57: 0.2023588471 | ANG57: -0.1901551154 | ANH57: -0.06921080188 | ANJ57: 0.196737768 | ANK57: -0.1848730288 | ANL57: -0.06728827961 | ANN57: 0.191420531 | ANO57: -0.1798764605 | ANP57: -0.06546967746 | ANR57: 0.1863831486 | ANS57: -0.1751428694 | ANT57: -0.06374679121 | ANV57: 0.1816040935 | ANW57: -0.1706520266 | ANX57: -0.0621122581 | ANZ57: 0.1770639912 | AOA57: -0.1663857259 | AOB57: -0.06055945165 | AOD57: -0.2218476346 | AOE57: -0.08074593553
AMB58: 570 | AMC58: 0.2387290336 | AMD58: 1.4488 | AME58: 2.09902144 | AMG58: -0.2067454077 | AMH58: -0.1193645168 | AMI58: 0.2387290336 | AMJ58: -2.617993878 | AML58: 0.2387290336 | AMM58: -0.2067454077 | AMN58: -0.1193645168 | AMP58: 0.231028097 | AMQ58: -0.200076201 | AMR58: -0.1155140485 | AMT58: 0.223808469 | AMU58: -0.1938238197 | AMV58: -0.1119042345 | AMX58: 0.2170263942 | AMY58: -0.1879503707 | AMZ58: -0.1085131971 | ANB58: 0.2106432649 | ANC58: -0.1824224186 | AND58: -0.1053216325 | ANF58: 0.2046248859 | ANG58: -0.1772103495 | ANH58: -0.102312443 | ANJ58: 0.1989408613 | ANK58: -0.1722878398 | ANL58: -0.09947043067 | ANN58: 0.1935640813 | ANO58: -0.1676314117 | ANP58: -0.09678204065 | ANR58: 0.1884702897 | ANS58: -0.1632200587 | ANT58: -0.09423514484 | ANV58: 0.1836377182 | ANW58: -0.159034929 | ANX58: -0.09181885908 | ANZ58: 0.1790467752 | AOA58: -0.1550590558 | AOB58: -0.0895233876 | AOD58: -0.2067454077 | AOE58: -0.1193645168
AMB59: 580 | AMC59: 0.2413874656 | AMD59: 1.4568 | AME59: 2.12226624 | AMG59: -0.1849135267 | AMH59: -0.155160872 | AMI59: 0.2413874656 | AMJ59: -2.443460953 | AML59: 0.2413874656 | AMM59: -0.1849135267 | AMN59: -0.155160872 | AMP59: 0.2336007732 | AMQ59: -0.1789485742 | AMR59: -0.1501556826 | AMT59: 0.226300749 | AMU59: -0.1733564312 | AMV59: -0.1454633175 | AMX59: 0.2194431505 | AMY59: -0.1681032061 | AMZ59: -0.1410553382 | ANB59: 0.2129889402 | ANC59: -0.1631589941 | AND59: -0.1369066518 | ANF59: 0.2069035419 | ANG59: -0.1584973086 | ANH59: -0.1329950332 | ANJ59: 0.2011562213 | ANK59: -0.1540946056 | ANL59: -0.1293007267 | ANN59: 0.1957195667 | ANO59: -0.1499298865 | ANP59: -0.1258061124 | ANR59: 0.1905690518 | ANS59: -0.1459843632 | ANT59: -0.1224954253 | ANV59: 0.1856826658 | ANW59: -0.1422411744 | ANX59: -0.1193545169 | ANZ59: 0.1810405992 | AOA59: -0.138685145 | AOB59: -0.116370654 | AOD59: -0.1849135267 | AOE59: -0.155160872
AMB60: 590 | AMC60: 0.2440606176 | AMD60: 1.4648 | AME60: 2.14563904 | AMG60: -0.156879141 | AMH60: -0.1869612799 | AMI60: 0.2440606176 | AMJ60: -2.268928028 | AML60: 0.2440606176 | AMM60: -0.156879141 | AMN60: -0.1869612799 | AMP60: 0.2361876945 | AMQ60: -0.1518185236 | AMR60: -0.1809302709 | AMT60: 0.228806829 | AMU60: -0.1470741947 | AMV60: -0.1752761999 | AMX60: 0.2218732887 | AMY60: -0.1426174009 | AMZ60: -0.1699647999 | ANB60: 0.2153476038 | ANC60: -0.1384227715 | AND60: -0.1649658352 | ANF60: 0.2091948151 | ANG60: -0.1344678351 | ANH60: -0.1602525256 | ANJ60: 0.203383848 | ANK60: -0.1307326175 | ANL60: -0.1558010666 | ANN60: 0.1978869872 | ANO60: -0.1271993035 | ANP60: -0.1515902269 | ANR60: 0.1926794349 | ANS60: -0.1238519534 | ANT60: -0.1476010104 | ANV60: 0.1877389366 | ANW60: -0.1206762623 | ANX60: -0.1438163692 | ANZ60: 0.1830454632 | AOA60: -0.1176593558 | AOB60: -0.1402209599 | AOD60: -0.156879141 | AOE60: -0.1869612799
AMB61: 600 | AMC61: 0.2467484896 | AMD61: 1.4728 | AME61: 2.16913984 | AMG61: -0.1233742448 | AMH61: -0.2136904603 | AMI61: 0.2467484896 | AMJ61: -2.094395102 | AML61: 0.2467484896 | AMM61: -0.1233742448 | AMN61: -0.2136904603 | AMP61: 0.2387888609 | AMQ61: -0.1193944305 | AMR61: -0.2067972197 | AMT61: 0.231326709 | AMU61: -0.1156633545 | AMV61: -0.2003348066 | AMX61: 0.2243168087 | AMY61: -0.1121584044 | AMZ61: -0.1942640549 | ANB61: 0.2177192555 | ANC61: -0.1088596278 | AND61: -0.1885504062 | ANF61: 0.2114987054 | ANG61: -0.1057493527 | ANH61: -0.1831632517 | ANJ61: 0.2056237413 | ANK61: -0.1028118707 | ANL61: -0.1780753836 | ANN61: 0.2000663429 | ANO61: -0.1000331715 | ANP61: -0.1732625354 | ANR61: 0.1948014392 | ANS61: -0.09740071958 | ANT61: -0.168702995 | ANV61: 0.1898065305 | ANW61: -0.09490326523 | ANX61: -0.1643772772 | ANZ61: 0.1850613672 | AOA61: -0.0925306836 | AOB61: -0.1602678453 | AOD61: -0.1233742448 | AOE61: -0.2136904603
AMB62: 610 | AMC62: 0.2494510816 | AMD62: 1.4808 | AME62: 2.19276864 | AMG62: -0.08531729468 | AMH62: -0.2344073406 | AMI62: 0.2494510816 | AMJ62: -1.919862177 | AML62: 0.2494510816 | AMM62: -0.08531729468 | AMN62: -0.2344073406 | AMP62: 0.2414042725 | AMQ62: -0.08256512389 | AMR62: -0.2268458135 | AMT62: 0.233860389 | AMU62: -0.07998496376 | AMV62: -0.2197568818 | AMX62: 0.2267737105 | AMY62: -0.07756117698 | AMZ62: -0.2130975824 | ANB62: 0.2201038955 | ANC62: -0.0752799659 | AND62: -0.2068300064 | ANF62: 0.2138152128 | ANG62: -0.07312910973 | ANH62: -0.2009205777 | ANJ62: 0.2078759013 | ANK62: -0.07109774557 | ANL62: -0.1953394505 | ANN62: 0.2022576337 | ANO62: -0.06917618488 | ANP62: -0.1900600059 | ANR62: 0.1969350644 | ANS62: -0.06735575896 | ANT62: -0.1850584268 | ANV62: 0.1918854474 | ANW62: -0.06562868822 | ANX62: -0.1803133389 | ANZ62: 0.1870883112 | AOA62: -0.06398797101 | AOB62: -0.1758055055 | AOD62: -0.08531729468 | AOE62: -0.2344073406
AMB63: 620 | AMC63: 0.2521683936 | AMD63: 1.4888 | AME63: 2.21652544 | AMG63: -0.04378858201 | AMH63: -0.2483373891 | AMI63: 0.2521683936 | AMJ63: -1.745329252 | AML63: 0.2521683936 | AMM63: -0.04378858201 | AMN63: -0.2483373891 | AMP63: 0.2440339293 | AMQ63: -0.04237604711 | AMR63: -0.2403265056 | AMT63: 0.236407869 | AMU63: -0.04105179564 | AMV63: -0.2328163023 | AMX63: 0.2292439942 | AMY63: -0.03980780183 | AMZ63: -0.2257612628 | ANB63: 0.2225015238 | ANC63: -0.03863698413 | AND63: -0.2191212257 | ANF63: 0.2161443374 | ANG63: -0.0375330703 | ANH63: -0.2128606192 | ANJ63: 0.210140328 | ANK63: -0.03649048501 | ANL63: -0.2069478242 | ANN63: 0.2044608597 | ANO63: -0.03550425569 | ANP63: -0.2013546398 | ANR63: 0.1990803107 | ANS63: -0.03456993317 | ANT63: -0.1960558335 | ANV63: 0.1939756874 | ANW63: -0.03368352463 | ANX63: -0.1910287608 | ANZ63: 0.1891262952 | AOA63: -0.03284143651 | AOB63: -0.1862530418 | AOD63: -0.04378858201 | AOE63: -0.2483373891
AMB64: 630 | AMC64: 0.2549004256 | AMD64: 1.4968 | AME64: 2.24041024 | AMG64: -1.093018019e-16 | AMH64: -0.2549004256 | AMI64: 0.2549004256 | AMJ64: -1.570796327 | AML64: 0.2549004256 | AMM64: -9.758398547e-17 | AMN64: -0.2549004256 | AMP64: 0.2466778312 | AMQ64: -9.443611497e-17 | AMR64: -0.2466778312 | AMT64: 0.238969149 | AMU64: -9.148498637e-17 | AMV64: -0.238969149 | AMX64: 0.2317276596 | AMY64: -8.871271406e-17 | AMZ64: -0.2317276596 | ANB64: 0.2249121402 | ANC64: -8.610351659e-17 | AND64: -0.2249121402 | ANF64: 0.2184860791 | ANG64: -8.364341611e-17 | ANH64: -0.2184860791 | ANJ64: 0.2124170213 | ANK64: -8.131998789e-17 | ANL64: -0.2124170213 | ANN64: 0.2066760208 | ANO64: -7.912215038e-17 | ANP64: -0.2066760208 | ANR64: 0.2012371781 | ANS64: -7.703998853e-17 | ANT64: -0.2012371781 | ANV64: 0.1960772505 | ANW64: -7.50646042e-17 | ANX64: -0.1960772505 | ANZ64: 0.1911753192 | AOA64: -7.31879891e-17 | AOB64: -0.1911753192 | AOD64: -9.758398547e-17 | AOE64: -0.2549004256
AMB65: 640 | AMC65: 0.2576471776 | AMD65: 1.5048 | AME65: 2.26442304 | AMG65: 0.04473996287 | AMH65: -0.253732938 | AMI65: 0.2576471776 | AMJ65: -1.396263402 | AML65: 0.2576471776 | AMM65: 0.04473996287 | AMN65: -0.253732938 | AMP65: 0.2493359783 | AMQ65: 0.04329673826 | AMR65: -0.2455480046 | AMT65: 0.241544229 | AMU65: 0.04194371519 | AMV65: -0.2378746294 | AMX65: 0.2342247069 | AMY65: 0.04067269352 | AMZ65: -0.2306663073 | ANB65: 0.2273357449 | ANC65: 0.03947643783 | AND65: -0.2238820042 | ANF65: 0.2208404379 | ANG65: 0.0383485396 | ANH65: -0.2174853755 | ANJ65: 0.2147059813 | ANK65: 0.03728330239 | ANL65: -0.211444115 | ANN65: 0.208903117 | ANO65: 0.03627564557 | ANP65: -0.2057294092 | ANR65: 0.2034056665 | ANS65: 0.03532102332 | ANT65: -0.2003154774 | ANV65: 0.1981901366 | ANW65: 0.03441535605 | ANX65: -0.1951791831 | ANZ65: 0.1932353832 | AOA65: 0.03355497215 | AOB65: -0.1902997035 | AOD65: 0.04473996287 | AOE65: -0.253732938
AMB66: 650 | AMC66: 0.2604086496 | AMD66: 1.5128 | AME66: 2.28856384 | AMG66: 0.08906500366 | AMH66: -0.2447040864 | AMI66: 0.2604086496 | AMJ66: -1.221730476 | AML66: 0.2604086496 | AMM66: 0.08906500366 | AMN66: -0.2447040864 | AMP66: 0.2520083706 | AMQ66: 0.08619193903 | AMR66: -0.2368104062 | AMT66: 0.244133109 | AMU66: 0.08349844093 | AMV66: -0.229410081 | AMX66: 0.236735136 | AMY66: 0.08096818514 | AMZ66: -0.2224582604 | ANB66: 0.2297723379 | ANC66: 0.07858676793 | AND66: -0.2159153704 | ANF66: 0.2232074139 | ANG66: 0.07634143171 | ANH66: -0.2097463598 | ANJ66: 0.217007208 | ANK66: 0.07422083638 | ANL66: -0.203920072 | ANN66: 0.2111421483 | ANO66: 0.07221486783 | ANP66: -0.1984087187 | ANR66: 0.205585776 | ANS66: 0.07031447657 | ANT66: -0.1931874366 | ANV66: 0.2003143458 | ANW66: 0.06851154128 | ANX66: -0.1882339126 | ANZ66: 0.1953064872 | AOA66: 0.06679875274 | AOB66: -0.1835280648 | AOD66: 0.08906500366 | AOE66: -0.2447040864
AMB67: 660 | AMC67: 0.2631848416 | AMD67: 1.5208 | AME67: 2.31283264 | AMG67: 0.1315924208 | AMH67: -0.2279247587 | AMI67: 0.2631848416 | AMJ67: -1.047197551 | AML67: 0.2631848416 | AMM67: 0.1315924208 | AMN67: -0.2279247587 | AMP67: 0.254695008 | AMQ67: 0.127347504 | AMR67: -0.2205723471 | AMT67: 0.246735789 | AMU67: 0.1233678945 | AMV67: -0.2136794613 | AMX67: 0.2392589469 | AMY67: 0.1196294735 | AMZ67: -0.2072043261 | ANB67: 0.2322219191 | ANC67: 0.1161109595 | AND67: -0.2011100812 | ANF67: 0.2255870071 | ANG67: 0.1127935035 | ANH67: -0.1953640789 | ANJ67: 0.2193207013 | ANK67: 0.1096603507 | ANL67: -0.1899372989 | ANN67: 0.2133931148 | ANO67: 0.1066965574 | ANP67: -0.1848038584 | ANR67: 0.2077775065 | ANS67: 0.1038887533 | ANT67: -0.179940599 | ANV67: 0.2024498782 | ANW67: 0.1012249391 | ANX67: -0.1753267375 | ANZ67: 0.1973886312 | AOA67: 0.0986943156 | AOB67: -0.170943569 | AOD67: 0.1315924208 | AOE67: -0.2279247587
AMB68: 670 | AMC68: 0.2659757536 | AMD68: 1.5288 | AME68: 2.33722944 | AMG68: 0.1709659189 | AMH68: -0.203749248 | AMI68: 0.2659757536 | AMJ68: -0.872664626 | AML68: 0.2659757536 | AMM68: 0.1709659189 | AMN68: -0.203749248 | AMP68: 0.2573958906 | AMQ68: 0.1654508892 | AMR68: -0.1971766917 | AMT68: 0.249352269 | AMU68: 0.160280549 | AMV68: -0.19101492 | AMX68: 0.2417961396 | AMY68: 0.1554235626 | AMZ68: -0.1852265891 | ANB68: 0.2346844885 | ANC68: 0.1508522814 | AND68: -0.1797787483 | ANF68: 0.2279792174 | ANG68: 0.1465422162 | ANH68: -0.1746422126 | ANJ68: 0.2216464613 | ANK68: 0.1424715991 | ANL68: -0.16979104 | ANN68: 0.2156560164 | ANO68: 0.1386210153 | ANP68: -0.165202093 | ANR68: 0.2099808581 | ANS68: 0.1349730939 | ANT68: -0.1608546695 | ANV68: 0.2045967335 | ANW68: 0.1315122453 | ANX68: -0.1567301908 | ANZ68: 0.1994818152 | AOA68: 0.1282244392 | AOB68: -0.152811936 | AOD68: 0.1709659189 | AOE68: -0.203749248
AMB69: 680 | AMC69: 0.2687813856 | AMD69: 1.5368 | AME69: 2.36175424 | AMG69: 0.2058984869 | AMH69: -0.1727693444 | AMI69: 0.2687813856 | AMJ69: -0.6981317008 | AML69: 0.2687813856 | AMM69: 0.2058984869 | AMN69: -0.1727693444 | AMP69: 0.2601110183 | AMQ69: 0.1992566002 | AMR69: -0.1671961397 | AMT69: 0.251982549 | AMU69: 0.1930298314 | AMV69: -0.1619712604 | AMX69: 0.2443467142 | AMY69: 0.1871804426 | AMZ69: -0.1570630403 | ANB69: 0.2371600461 | ANC69: 0.1816751355 | AND69: -0.1524435392 | ANF69: 0.2303840448 | ANG69: 0.1764844173 | ANH69: -0.1480880095 | ANJ69: 0.223984488 | ANK69: 0.1715820724 | ANL69: -0.1439744536 | ANN69: 0.2179308532 | ANO69: 0.1669447191 | ANP69: -0.1400832522 | ANR69: 0.2121958307 | ANS69: 0.162551437 | ANT69: -0.1363968508 | ANV69: 0.206754912 | ANW69: 0.1583834514 | ANX69: -0.1328994957 | ANZ69: 0.2015860392 | AOA69: 0.1544238651 | AOB69: -0.1295770083 | AOD69: 0.2058984869 | AOE69: -0.1727693444
AMB70: 690 | AMC70: 0.2716017376 | AMD70: 1.5448 | AME70: 2.38640704 | AMG70: 0.2352140045 | AMH70: -0.1358008688 | AMI70: 0.2716017376 | AMJ70: -0.5235987756 | AML70: 0.2716017376 | AMM70: 0.2352140045 | AMN70: -0.1358008688 | AMP70: 0.2628403912 | AMQ70: 0.2276264559 | AMR70: -0.1314201956 | AMT70: 0.254626629 | AMU70: 0.2205131292 | AMV70: -0.1273133145 | AMX70: 0.2469106705 | AMY70: 0.2138309132 | AMZ70: -0.1234553353 | ANB70: 0.239648592 | ANC70: 0.2075417687 | AND70: -0.119824296 | ANF70: 0.2328014894 | ANG70: 0.2016120038 | ANH70: -0.1164007447 | ANJ70: 0.2263347813 | ANK70: 0.1960116704 | ANL70: -0.1131673907 | ANN70: 0.2202176251 | ANO70: 0.1907140577 | ANP70: -0.1101088125 | ANR70: 0.2144224244 | ANS70: 0.1856952667 | ANT70: -0.1072112122 | ANV70: 0.2089244135 | ANW70: 0.1809338496 | ANX70: -0.1044622068 | ANZ70: 0.2037013032 | AOA70: 0.1764105034 | AOB70: -0.1018506516 | AOD70: 0.2352140045 | AOE70: -0.1358008688
AMB71: 700 | AMC71: 0.2744368096 | AMD71: 1.5528 | AME71: 2.41118784 | AMG71: 0.2578862449 | AMH71: -0.09386291695 | AMI71: 0.2744368096 | AMJ71: -0.3490658504 | AML71: 0.2744368096 | AMM71: 0.2578862449 | AMN71: -0.09386291695 | AMP71: 0.2655840093 | AMQ71: 0.2495673337 | AMR71: -0.09083508092 | AMT71: 0.257284509 | AMU71: 0.2417683545 | AMV71: -0.08799648464 | AMX71: 0.2494880087 | AMY71: 0.2344420408 | AMZ71: -0.0853299245 | ANB71: 0.2421501261 | ANC71: 0.2275466866 | AND71: -0.08282022084 | ANF71: 0.2352315511 | ANG71: 0.2210453527 | ANH71: -0.08045392882 | ANJ71: 0.2286973413 | ANK71: 0.214905204 | ANL71: -0.07821909746 | ANN71: 0.2225163321 | ANO71: 0.2090969553 | ANP71: -0.0761050678 | ANR71: 0.2166606392 | ANS71: 0.2035944038 | ANT71: -0.07410230286 | ANV71: 0.2111052382 | ANW71: 0.1983740345 | ANX71: -0.07220224381 | ANZ71: 0.2058276072 | AOA71: 0.1934146836 | AOB71: -0.07039718771 | AOD71: 0.2578862449 | AOE71: -0.09386291695
AMB72: 710 | AMC72: 0.2772866016 | AMD72: 1.5608 | AME72: 2.43609664 | AMG72: 0.2730739951 | AMH72: -0.04815031306 | AMI72: 0.2772866016 | AMJ72: -0.1745329252 | AML72: 0.2772866016 | AMM72: 0.2730739951 | AMN72: -0.04815031306 | AMP72: 0.2683418725 | AMQ72: 0.2642651565 | AMR72: -0.04659707715 | AMT72: 0.259956189 | AMU72: 0.2560068704 | AMV72: -0.04514091849 | AMX72: 0.2520787287 | AMY72: 0.2482490864 | AMZ72: -0.04377301187 | ANB72: 0.2446646485 | ANC72: 0.2409476427 | AND72: -0.04248557035 | ANF72: 0.2376742299 | ANG72: 0.2340634243 | ANH72: -0.04127169691 | ANJ72: 0.231072168 | ANK72: 0.2275616626 | ANL72: -0.04012526088 | ANN72: 0.2248269743 | ANO72: 0.2214113473 | ANP72: -0.03904079437 | ANR72: 0.2189104749 | ANS72: 0.2155847329 | ANT72: -0.03801340505 | ANV72: 0.2132973858 | ANW72: 0.2100569193 | ANX72: -0.03703870235 | ANZ72: 0.2079649512 | AOA72: 0.2048054963 | AOB72: -0.03611273479 | AOD72: 0.2730739951 | AOE72: -0.04815031306
AMB73: 720 | AMC73: 0.2801511136 | AMD73: 1.5688 | AME73: 2.46113344 | AMG73: 0.2801511136 | AMH73: -1.372906816e-16 | AMI73: 0.2801511136 | AMJ73: -4.90059382e-16 | AML73: 0.2801511136 | AMM73: 0.2801511136 | AMN73: -1.372906816e-16 | AMP73: 0.2711139809 | AMQ73: 0.2711139809 | AMR73: -1.328619499e-16 | AMT73: 0.262641669 | AMU73: 0.262641669 | AMV73: -1.28710014e-16 | AMX73: 0.2546828305 | AMY73: 0.2546828305 | AMZ73: -1.248097105e-16 | ANB73: 0.2471921591 | ANC73: 0.2471921591 | AND73: -1.211388367e-16 | ANF73: 0.2401295259 | ANG73: 0.2401295259 | ANH73: -1.176777271e-16 | ANJ73: 0.2334592613 | ANK73: 0.2334592613 | ANL73: -1.144089013e-16 | ANN73: 0.2271495516 | ANO73: 0.2271495516 | ANP73: -1.113167689e-16 | ANR73: 0.2211719318 | ANS73: 0.2211719318 | ANT73: -1.083873802e-16 | ANV73: 0.2155008566 | ANW73: 0.2155008566 | ANX73: -1.056082166e-16 | ANZ73: 0.2101133352 | AOA73: 0.2101133352 | AOB73: -1.029680112e-16 | AOD73: 0.2801511136 | AOE73: -1.372906816e-16
